Workbook

Sheet Instruction
B13: Présentation de l'onglet Paramètre

Sheet Parametre
A1: Lattice Parameters
A2: Initial Price | B2: 100
A3: Maturity (years) | B3: 3 | E3: -75.0654595 | F3: 0.4564827404 | G3: -70.53073462 | H3: 0.3331167611
A4: volatility | B4: =ImpVolCAC40!D680 -> 0.13865 | D4: 0.03005535969
A5: # Periods (multiple of T) | B5: 3
A6: r | B6: 0.00137
A7: Div-Yield | B7: 0
A8: Option Parameters
A9: Call / Put | B9: 1
A10: Strike (manuel) | B10: 110
A11: Strike min | B11: 55
A12: Strike max | B12: 145
A13: ΔStrike | B13: 0.5

Sheet Fuzzy CRR
A1: Fuzzy Parameters | F1: Résultat | H1: Détail
A2: rho | B2: =ImpVolCAC40!$D$1 -> 0.0785070321 | F2: Prix | G2: =$I$4 + (($I$2 - $I$4) + ($I$3 - $I$4 )) / 3 -> 6.54737553 | H2: Prix H | I2: =B23 -> 8.761695016
A3: Rl | B3: =INDIRECT("Eurib12M!C"&Eurib12M!D2)/100 -> -0.00186 | C3: ul | D3: =EXP((1-$B$2)*Parametre!$B$4*SQRT(Parametre!$B$3/Parametre!$B$5)) -> 1.136285944 | F3: Ecart | G3: =$G$2/$I$3 - 1 -> 0.08874030208 | H3: Prix M | I3: =H23 -> 6.01371651
A4: Rm | B4: =Parametre!B6 -> 0.00137 | C4: um | D4: =EXP(Parametre!$B$4*SQRT(Parametre!$B$3/Parametre!$B$5)) -> 1.148721977 | H4: Prix L | I4: =N23 -> 4.866715064
A5: Rh | B5: =INDIRECT("Eurib12M!C"&Eurib12M!D1)/100 -> 0.01947 | C5: uh | D5: =EXP((1+$B$2)*Parametre!$B$4*SQRT(Parametre!$B$3/Parametre!$B$5)) -> 1.161294115
A6: Ph | B6: =IF(Parametre!$B$9=1,(EXP($B$5*Parametre!$B$3/Parametre!$B$5)-$D$8)/($D$5-$D$8),(EXP($B$3*Parametre!$B$3/Parametre!$B$5)-$D$8)/($D$5-$D$8)) -> 0.52818111 | C6: dl | D6: =1/D3 -> 0.880060169
A7: Pm | B7: =(EXP($B$4*Parametre!$B$3/Parametre!$B$5)-$D$7)/($D$4-$D$7) -> 0.4703210011 | C7: dm | D7: =1/D4 -> 0.8705326616
A8: Pl | B8: =IF(Parametre!$B$9=1,(EXP($B$3*Parametre!$B$3/Parametre!$B$5)-$D$6)/($D$3-$D$6),(EXP($B$5*Parametre!$B$3/Parametre!$B$5)-$D$6)/($D$3-$D$6)) -> 0.4608496537 | C8: dh | D8: =1/D5 -> 0.8611082987
A11: Fuzzy Stock H | G11: Stock M | M11: Fuzzy Stock L
B12: 0 | C12: 1 | D12: 2 | E12: 3 | H12: 0 | I12: 1 | J12: 2 | K12: 3 | N12: 0 | O12: 1 | P12: 2 | Q12: 3
A13: 3 | C13: =IF($A13<C$12,$D$8*OFFSET(C13,0,-1),IF($A13=C$12,$D$5*OFFSET(C13,1,-1),"")) ->  | E13: 156.6125915 | G13: 3 | I13: =IF($G13<I$12,$D$7*OFFSET(I13,0,-1),IF($G13=I$12,$D$4*OFFSET(I13,1,-1),"")) ->  | K13: 151.5810076 | M13: 3 | O13: =IF($M13<O$12,$D$6*OFFSET(O13,0,-1),IF($M13=O$12,$D$3*OFFSET(O13,1,-1),"")) ->  | Q13: 146.7110764
A14: 2 | D14: 134.8604022 | E14: 116.1294115 | G14: 2 | J14: 131.956218 | K14: 114.8721977 | M14: 2 | P14: 129.1145747 | Q14: 113.6285944
A15: 1 | C15: 116.1294115 | D15: 100 | E15: 86.11082987 | G15: 1 | I15: 114.8721977 | J15: 100 | K15: 87.05326616 | M15: 1 | O15: 113.6285944 | P15: 100 | Q15: 88.0060169
A16: 0 | B16: 100 | C16: =IF($A16<C$12,$D$8*OFFSET(C16,0,-1),IF($A16=C$12,$D$5*OFFSET(C16,1,-1),"")) -> 86.11082987 | D16: 74.15075021 | E16: 63.85182636 | G16: 0 | H16: 100 | I16: =IF($G16<I$12,$D$7*OFFSET(I16,0,-1),IF($G16=I$12,$D$4*OFFSET(I16,1,-1),"")) -> 87.05326616 | J16: 75.78271149 | K16: 65.97132553 | M16: 0 | N16: 100 | O16: =IF($M16<O$12,$D$6*OFFSET(O16,0,-1),IF($M16=O$12,$D$3*OFFSET(O16,1,-1),"")) -> 88.0060169 | P16: 77.4505901 | Q16: 68.16117941
A18: Fuzzy Payoff H | G18: Payoff M | M18: Fuzzy Payoff L
B19: 0 | C19: 1 | D19: 2 | E19: 3 | H19: 0 | I19: 1 | J19: 2 | K19: 3 | N19: 0 | O19: 1 | P19: 2 | Q19: 3
A20: 3 | B20: =IF(Parametre!$B$9=1,IF($A20<= B$19, ($B$6*C19+(1-$B$6)*C20)/EXP($B$5*Parametre!$B$3/Parametre!$B$5),""),IF($A20<=B$19, ($B$6*C19+(1-$B$6)*C20)/EXP($B$3*Parametre!$B$3/Parametre!$B$5),"")) ->  | C20: =IF(Parametre!$B$9=1,IF($A20<= C$19, ($B$6*D19+(1-$B$6)*D20)/EXP($B$5*Parametre!$B$3/Parametre!$B$5),""),IF($A20<=C$19, ($B$6*D19+(1-$B$6)*D20)/EXP($B$3*Parametre!$B$3/Parametre!$B$5),"")) ->  | D20: =IF(Parametre!$B$9=1,IF($A20<= D$19, ($B$6*E19+(1-$B$6)*E20)/EXP($B$5*Parametre!$B$3/Parametre!$B$5),""),IF($A20<=D$19, ($B$6*E19+(1-$B$6)*E20)/EXP($B$3*Parametre!$B$3/Parametre!$B$5),"")) ->  | E20: =MAX(Parametre!$B$9*(E13-Parametre!$B$10),0) -> 46.61259153 | G20: 3 | H20: =IF($G20<= H$19, ($B$7*I19+(1-$B$7)*I20)/EXP($B$4*Parametre!$B$3/Parametre!$B$5),"") ->  | I20: =IF($G20<= I$19, ($B$7*J19+(1-$B$7)*J20)/EXP($B$4*Parametre!$B$3/Parametre!$B$5),"") ->  | J20: =IF($G20<= J$19, ($B$7*K19+(1-$B$7)*K20)/EXP($B$4*Parametre!$B$3/Parametre!$B$5),"") ->  | K20: =MAX(Parametre!$B$9*(K13-Parametre!$B$10),0) -> 41.58100765 | M20: 3 | N20: =IF(Parametre!$B$9=1,IF($M20<= N$19, ($B$8*O19+(1-$B$8)*O20)/EXP($B$3*Parametre!$B$3/Parametre!$B$5),""),IF($M20<=N$19, ($B$8*O19+(1-$B$8)*O20)/EXP($B$5*Parametre!$B$3/Parametre!$B$5),"")) ->  | O20: =IF(Parametre!$B$9=1,IF($M20<= O$19, ($B$8*P19+(1-$B$8)*P20)/EXP($B$3*Parametre!$B$3/Parametre!$B$5),""),IF($M20<=O$19, ($B$8*P19+(1-$B$8)*P20)/EXP($B$5*Parametre!$B$3/Parametre!$B$5),"")) ->  | P20: =IF(Parametre!$B$9=1,IF($M20<= P$19, ($B$8*Q19+(1-$B$8)*Q20)/EXP($B$3*Parametre!$B$3/Parametre!$B$5),""),IF($M20<=P$19, ($B$8*Q19+(1-$B$8)*Q20)/EXP($B$5*Parametre!$B$3/Parametre!$B$5),"")) ->  | Q20: =MAX(Parametre!$B$9*(Q13-Parametre!$B$10),0) -> 36.71107639
A21: 2 | B21: =IF(Parametre!$B$9=1,IF($A21<= B$19, ($B$6*C20+(1-$B$6)*C21)/EXP($B$5*Parametre!$B$3/Parametre!$B$5),""),IF($A21<=B$19, ($B$6*C20+(1-$B$6)*C21)/EXP($B$3*Parametre!$B$3/Parametre!$B$5),"")) ->  | C21: =IF(Parametre!$B$9=1,IF($A21<= C$19, ($B$6*D20+(1-$B$6)*D21)/EXP($B$5*Parametre!$B$3/Parametre!$B$5),""),IF($A21<=C$19, ($B$6*D20+(1-$B$6)*D21)/EXP($B$3*Parametre!$B$3/Parametre!$B$5),"")) ->  | D21: =IF(Parametre!$B$9=1,IF($A21<= D$19, ($B$6*E20+(1-$B$6)*E21)/EXP($B$5*Parametre!$B$3/Parametre!$B$5),""),IF($A21<=D$19, ($B$6*E20+(1-$B$6)*E21)/EXP($B$3*Parametre!$B$3/Parametre!$B$5),"")) -> 26.98138745 | E21: =MAX(Parametre!$B$9*(E14-Parametre!$B$10),0) -> 6.129411539 | G21: 2 | H21: =IF($G21<= H$19, ($B$7*I20+(1-$B$7)*I21)/EXP($B$4*Parametre!$B$3/Parametre!$B$5),"") ->  | I21: =IF($G21<= I$19, ($B$7*J20+(1-$B$7)*J21)/EXP($B$4*Parametre!$B$3/Parametre!$B$5),"") ->  | J21: =IF($G21<= J$19, ($B$7*K20+(1-$B$7)*K21)/EXP($B$4*Parametre!$B$3/Parametre!$B$5),"") -> 22.10681485 | K21: =MAX(Parametre!$B$9*(K14-Parametre!$B$10),0) -> 4.872197694 | M21: 2 | N21: =IF(Parametre!$B$9=1,IF($M21<= N$19, ($B$8*O20+(1-$B$8)*O21)/EXP($B$3*Parametre!$B$3/Parametre!$B$5),""),IF($M21<=N$19, ($B$8*O20+(1-$B$8)*O21)/EXP($B$5*Parametre!$B$3/Parametre!$B$5),"")) ->  | O21: =IF(Parametre!$B$9=1,IF($M21<= O$19, ($B$8*P20+(1-$B$8)*P21)/EXP($B$3*Parametre!$B$3/Parametre!$B$5),""),IF($M21<=O$19, ($B$8*P20+(1-$B$8)*P21)/EXP($B$5*Parametre!$B$3/Parametre!$B$5),"")) ->  | P21: =IF(Parametre!$B$9=1,IF($M21<= P$19, ($B$8*Q20+(1-$B$8)*Q21)/EXP($B$3*Parametre!$B$3/Parametre!$B$5),""),IF($M21<=P$19, ($B$8*Q20+(1-$B$8)*Q21)/EXP($B$5*Parametre!$B$3/Parametre!$B$5),"")) -> 18.90978428 | Q21: =MAX(Parametre!$B$9*(Q14-Parametre!$B$10),0) -> 3.628594412
A22: 1 | B22: =IF(Parametre!$B$9=1,IF($A22<= B$19, ($B$6*C21+(1-$B$6)*C22)/EXP($B$5*Parametre!$B$3/Parametre!$B$5),""),IF($A22<=B$19, ($B$6*C21+(1-$B$6)*C22)/EXP($B$3*Parametre!$B$3/Parametre!$B$5),"")) ->  | C22: =IF(Parametre!$B$9=1,IF($A22<= C$19, ($B$6*D21+(1-$B$6)*D22)/EXP($B$5*Parametre!$B$3/Parametre!$B$5),""),IF($A22<=C$19, ($B$6*D21+(1-$B$6)*D22)/EXP($B$3*Parametre!$B$3/Parametre!$B$5),"")) -> 15.44542274 | D22: =IF(Parametre!$B$9=1,IF($A22<= D$19, ($B$6*E21+(1-$B$6)*E22)/EXP($B$5*Parametre!$B$3/Parametre!$B$5),""),IF($A22<=D$19, ($B$6*E21+(1-$B$6)*E22)/EXP($B$3*Parametre!$B$3/Parametre!$B$5),"")) -> 3.175016108 | E22: =MAX(Parametre!$B$9*(E15-Parametre!$B$10),0) -> 0 | G22: 1 | H22: =IF($G22<= H$19, ($B$7*I21+(1-$B$7)*I22)/EXP($B$4*Parametre!$B$3/Parametre!$B$5),"") ->  | I22: =IF($G22<= I$19, ($B$7*J21+(1-$B$7)*J22)/EXP($B$4*Parametre!$B$3/Parametre!$B$5),"") -> 11.59350138 | J22: =IF($G22<= J$19, ($B$7*K21+(1-$B$7)*K22)/EXP($B$4*Parametre!$B$3/Parametre!$B$5),"") -> 2.288359696 | K22: =MAX(Parametre!$B$9*(K15-Parametre!$B$10),0) -> 0 | M22: 1 | N22: =IF(Parametre!$B$9=1,IF($M22<= N$19, ($B$8*O21+(1-$B$8)*O22)/EXP($B$3*Parametre!$B$3/Parametre!$B$5),""),IF($M22<=N$19, ($B$8*O21+(1-$B$8)*O22)/EXP($B$5*Parametre!$B$3/Parametre!$B$5),"")) ->  | O22: =IF(Parametre!$B$9=1,IF($M22<= O$19, ($B$8*P21+(1-$B$8)*P22)/EXP($B$3*Parametre!$B$3/Parametre!$B$5),""),IF($M22<=O$19, ($B$8*P21+(1-$B$8)*P22)/EXP($B$5*Parametre!$B$3/Parametre!$B$5),"")) -> 9.635738744 | P22: =IF(Parametre!$B$9=1,IF($M22<= P$19, ($B$8*Q21+(1-$B$8)*Q22)/EXP($B$3*Parametre!$B$3/Parametre!$B$5),""),IF($M22<=P$19, ($B$8*Q21+(1-$B$8)*Q22)/EXP($B$5*Parametre!$B$3/Parametre!$B$5),"")) -> 1.675349733 | Q22: =MAX(Parametre!$B$9*(Q15-Parametre!$B$10),0) -> 0
A23: 0 | B23: =IF(Parametre!$B$9=1,IF($A23<= B$19, ($B$6*C22+(1-$B$6)*C23)/EXP($B$5*Parametre!$B$3/Parametre!$B$5),""),IF($A23<=B$19, ($B$6*C22+(1-$B$6)*C23)/EXP($B$3*Parametre!$B$3/Parametre!$B$5),"")) -> 8.761695016 | C23: =IF(Parametre!$B$9=1,IF($A23<= C$19, ($B$6*D22+(1-$B$6)*D23)/EXP($B$5*Parametre!$B$3/Parametre!$B$5),""),IF($A23<=C$19, ($B$6*D22+(1-$B$6)*D23)/EXP($B$3*Parametre!$B$3/Parametre!$B$5),"")) -> 1.644648466 | D23: =IF(Parametre!$B$9=1,IF($A23<= D$19, ($B$6*E22+(1-$B$6)*E23)/EXP($B$5*Parametre!$B$3/Parametre!$B$5),""),IF($A23<=D$19, ($B$6*E22+(1-$B$6)*E23)/EXP($B$3*Parametre!$B$3/Parametre!$B$5),"")) -> 0 | E23: =MAX(Parametre!$B$9*(E16-Parametre!$B$10),0) -> 0 | G23: 0 | H23: =IF($G23<= H$19, ($B$7*I22+(1-$B$7)*I23)/EXP($B$4*Parametre!$B$3/Parametre!$B$5),"") -> 6.01371651 | I23: =IF($G23<= I$19, ($B$7*J22+(1-$B$7)*J23)/EXP($B$4*Parametre!$B$3/Parametre!$B$5),"") -> 1.074790152 | J23: =IF($G23<= J$19, ($B$7*K22+(1-$B$7)*K23)/EXP($B$4*Parametre!$B$3/Parametre!$B$5),"") -> 0 | K23: =MAX(Parametre!$B$9*(K16-Parametre!$B$10),0) -> 0 | M23: 0 | N23: =IF(Parametre!$B$9=1,IF($M23<= N$19, ($B$8*O22+(1-$B$8)*O23)/EXP($B$3*Parametre!$B$3/Parametre!$B$5),""),IF($M23<=N$19, ($B$8*O22+(1-$B$8)*O23)/EXP($B$5*Parametre!$B$3/Parametre!$B$5),"")) -> 4.866715064 | O23: =IF(Parametre!$B$9=1,IF($M23<= O$19, ($B$8*P22+(1-$B$8)*P23)/EXP($B$3*Parametre!$B$3/Parametre!$B$5),""),IF($M23<=O$19, ($B$8*P22+(1-$B$8)*P23)/EXP($B$5*Parametre!$B$3/Parametre!$B$5),"")) -> 0.7735217574 | P23: =IF(Parametre!$B$9=1,IF($M23<= P$19, ($B$8*Q22+(1-$B$8)*Q23)/EXP($B$3*Parametre!$B$3/Parametre!$B$5),""),IF($M23<=P$19, ($B$8*Q22+(1-$B$8)*Q23)/EXP($B$5*Parametre!$B$3/Parametre!$B$5),"")) -> 0 | Q23: =MAX(Parametre!$B$9*(Q16-Parametre!$B$10),0) -> 0

Sheet Resultat
A1: Call | L1: Put
B2: Strike | C2: Prix | D2: Ecart Relatif | E2: VAR | F2: Ecart VAR | G2: RM VAR | H2: ES | I2: Ecart ES | J2: RM ES | M2: Strike | N2: Prix | O2: Ecart Relatif | P2: VAR | Q2: Ecart VAR | R2: RM VAR | S2: ES | T2: Ecart ES | U2: RM ES
B3: 55 | C3: 46.04183373 | D3: 0.01727103534 | E3: -73.85397878 | F3: 0.06590658432 | G3: 0.7499268211 | H3: -69.33227841 | I3: 0.04906303976 | J3: 0.6976387686 | M3: 55 | N3: 0.03821493014 | O3: 0.1058174762 | P3: -0.009124399945 | Q3: -0.02966320089 | R3: 0.2849132037 | S3: -0.008740248587 | T3: -0.02587858855 | U3: 0.3199185295
B4: 55.5 | C4: 45.55495464 | D4: 0.01760388227 | E4: -73.85397878 | F4: 0.06590658432 | G4: 0.7499268211 | H4: -69.33227841 | I4: 0.04906303976 | J4: 0.6976387686 | M4: 55.5 | N4: 0.04305561849 | O4: 0.09704766682 | P4: -0.01365225164 | Q4: -0.02961205835 | R4: 0.2848224026 | S4: -0.01307855901 | T4: -0.02584198371 | U4: 0.3197990667
B5: 56 | C5: 45.06829375 | D5: 0.01793402388 | E5: -73.85397878 | F5: 0.06590658432 | G5: 0.7499268211 | H5: -69.33227841 | I5: 0.04906303976 | J5: 0.6976387686 | M5: 56 | N5: 0.04811450453 | O5: 0.07903942251 | P5: -0.01818010334 | Q5: -0.02958638842 | R5: 0.2847766796 | S5: -0.01741686942 | T5: -0.02582361339 | U5: 0.3197389261
B6: 56.5 | C6: 44.5820328 | D6: 0.01828072952 | E6: -73.85397878 | F6: 0.06590658432 | G6: 0.7499268211 | H6: -69.33227841 | I6: 0.04906303976 | J6: 0.6976387686 | M6: 56.5 | N6: 0.05334968142 | O6: 0.06841577645 | P6: -0.02270795503 | Q6: -0.02957095475 | R6: 0.2847491417 | S6: -0.02175517984 | T6: -0.02581256938 | U6: 0.3197027097
B7: 57 | C7: 44.09623309 | D7: 0.0186459808 | E7: -73.85397878 | F7: 0.06590658432 | G7: 0.7499268211 | H7: -69.33227841 | I7: 0.04906303976 | J7: 0.6976387686 | M7: 57 | N7: 0.05936571081 | O7: 0.07397223007 | P7: -0.02723580673 | Q7: -0.02956065238 | R7: 0.2847307395 | S7: -0.02609349026 | T7: -0.02580519758 | U7: 0.3196785102
B8: 57.5 | C8: 43.61130092 | D8: 0.01899476793 | E8: -73.85397878 | F8: 0.06590658432 | G8: 0.7499268211 | H8: -69.33227841 | I8: 0.04906303976 | J8: 0.6976387686 | M8: 57.5 | N8: 0.06644119846 | O8: 0.06278604084 | P8: -0.03176365842 | Q8: -0.02955328705 | R8: 0.2847175737 | S8: -0.03043180068 | T8: -0.02579992754 | U8: 0.3196611977
B9: 58 | C9: 43.12673695 | D9: 0.01934913305 | E9: -73.85397878 | F9: 0.06590658432 | G9: 0.7499268211 | H9: -69.33227841 | I9: 0.04906303976 | J9: 0.6976387686 | M9: 58 | N9: 0.07376965853 | O9: 0.05053753828 | P9: -0.03629151012 | Q9: -0.02954775949 | R9: 0.2847076876 | S9: -0.0347701111 | T9: -0.02579597257 | U9: 0.3196481985
B10: 58.5 | C10: 42.64258001 | D10: 0.01972154019 | E10: -73.85397878 | F10: 0.06590658432 | G10: 0.7499268211 | H10: -69.33227841 | I10: 0.04906303976 | J10: 0.6976387686 | M10: 58.5 | N10: 0.08128498478 | O10: 0.04310915257 | P10: -0.04081936181 | Q10: -0.02954345817 | R10: 0.2846999915 | S10: -0.03910842152 | T10: -0.02579289502 | U10: 0.3196380791
B11: 59 | C11: 42.15879211 | D11: 0.02011171242 | E11: -73.85397878 | F11: 0.06590658432 | G11: 0.7499268211 | H11: -69.33227841 | I11: 0.04906303976 | J11: 0.6976387686 | M11: 59 | N11: 0.08944718052 | O11: 0.04457173692 | P11: -0.04534721351 | Q11: -0.02954001578 | R11: 0.2846938302 | S11: -0.04344673194 | T11: -0.02579043207 | U11: 0.3196299781
B12: 59.5 | C12: 41.67644774 | D12: 0.02047793471 | E12: -73.85397878 | F12: 0.06590658432 | G12: 0.7499268211 | H12: -69.33227841 | I12: 0.04906303976 | J12: 0.6976387686 | M12: 59.5 | N12: 0.09945004746 | O12: 0.03504151976 | P12: -0.0498750652 | Q12: -0.0295371984 | R12: 0.2846887862 | S12: -0.04778504235 | T12: -0.02578841632 | U12: 0.3196233462
B13: 60 | C13: 41.19482488 | D13: 0.02085935917 | E13: -73.77172663 | F13: 0.0659143733 | G13: 0.7499326865 | H13: -69.25477131 | I13: 0.04906878956 | J13: 0.6976449381 | M13: 60 | N13: 0.1098771749 | O13: 0.02697160004 | P13: -0.0544029169 | Q13: -0.02953484997 | R13: 0.2846845809 | S13: -0.05212335277 | T13: -0.02578673611 | U13: 0.3196178172
B14: 60.5 | C14: 40.71348685 | D14: 0.02125724807 | E14: -73.62472874 | F14: 0.06592181609 | G14: 0.7499382902 | H14: -69.11649657 | I14: 0.04907428384 | J14: 0.6976508323 | M14: 60.5 | N14: 0.1204405002 | O14: 0.02155016801 | P14: -0.07151982947 | Q14: -0.02950318675 | R14: 0.2846278002 | S14: -0.06852656978 | T14: -0.02576408377 | U14: 0.3195431716
B15: 61 | C15: 40.23217831 | D15: 0.02166572796 | E15: -73.47773085 | F15: 0.06592928878 | G15: 0.7499439154 | H15: -68.97822183 | I15: 0.0490798002 | J15: 0.6976567493 | M15: 61 | N15: 0.1310537429 | O15: 0.01743451249 | P15: -0.08863674203 | Q15: -0.02948375166 | R15: 0.2845928726 | S15: -0.08492978678 | T15: -0.02575018098 | U15: 0.3194972625
B16: 61.5 | C16: 39.75314354 | D16: 0.02205601787 | E16: -73.33073296 | F16: 0.06593679152 | G16: 0.7499495621 | H16: -68.83994709 | I16: 0.04908533879 | J16: 0.6976626892 | M16: 61.5 | N16: 0.14475264 | O16: 0.0120968547 | P16: -0.1057536546 | Q16: -0.02947060753 | R16: 0.2845692181 | S16: -0.1013330038 | T16: -0.02574077898 | U16: 0.3194661743
B17: 62 | C17: 39.27543329 | D17: 0.02246527173 | E17: -73.18373507 | F17: 0.06594432451 | G17: 0.7499552306 | H17: -68.70167235 | I17: 0.04909089972 | J17: 0.697668652 | M17: 62 | N17: 0.159270527 | O17: 0.006835105407 | P17: -0.1228705672 | Q17: -0.02946112535 | R17: 0.2845521375 | S17: -0.1177362208 | T17: -0.02573399667 | U17: 0.3194437275
B18: 62.5 | C18: 38.79786975 | D18: 0.02288881158 | E18: -73.03673718 | F18: 0.06595188794 | G18: 0.749960921 | H18: -68.56339761 | I18: 0.04909648315 | J18: 0.697674638 | M18: 62.5 | N18: 0.1738614758 | O18: 0.002915502694 | P18: -0.1399874797 | Q18: -0.0294539619 | R18: 0.2845392246 | S18: -0.1341394378 | T18: -0.02572887305 | U18: 0.3194267587
B19: 63 | C19: 38.3203062 | D19: 0.02332327236 | E19: -72.88973929 | F19: 0.06595948197 | G19: 0.7499666333 | H19: -68.42512287 | I19: 0.0491020892 | J19: 0.6976806472 | M19: 63 | N19: 0.1884524245 | O19: -0.0003734314563 | P19: -0.1571043923 | Q19: -0.02944835934 | R19: 0.2845291199 | S19: -0.1505426548 | T19: -0.02572486593 | U19: 0.3194134808
B20: 63.5 | C20: 37.84451435 | D20: 0.02373189659 | E20: -72.7427414 | F20: 0.06596710681 | G20: 0.7499723678 | H20: -68.28684813 | I20: 0.04910771801 | J20: 0.6976866798 | M20: 63.5 | N20: 0.2052896268 | O20: -0.007125328004 | P20: -0.1742213049 | Q20: -0.02944385761 | R20: 0.2845209972 | S20: -0.1669458718 | T20: -0.02572164623 | U20: 0.3194028076
B21: 64 | C21: 37.37184035 | D21: 0.02416726442 | E21: -72.59574351 | F21: 0.06597476263 | G21: 0.7499781244 | H21: -68.1485734 | I21: 0.04911336973 | J21: 0.6976927359 | M21: 64 | N21: 0.2250674505 | O21: -0.01059348257 | P21: -0.1913382174 | Q21: -0.02944016128 | R21: 0.2845143254 | S21: -0.1833490888 | T21: -0.02571900261 | U21: 0.3193940411
B22: 64.5 | C22: 36.89922981 | D22: 0.02461593311 | E22: -72.44874562 | F22: 0.06598244964 | G22: 0.7499839035 | H22: -68.01029866 | I22: 0.04911904449 | J22: 0.6976988157 | M22: 64.5 | N22: 0.2448781889 | O22: -0.01335010697 | P22: -0.20845513 | Q22: -0.02943707197 | R22: 0.2845087476 | S22: -0.1997523058 | T22: -0.02571679315 | U22: 0.3193867123
B23: 65 | C23: 36.42661927 | D23: 0.02507665286 | E23: -72.30174773 | F23: 0.06599016801 | G23: 0.749989705 | H23: -67.87202392 | I23: 0.04912474243 | J23: 0.6977049192 | M23: 65 | N23: 0.2646889274 | O23: -0.01568203508 | P23: -0.2255720426 | Q23: -0.0294344515 | R23: 0.2845040152 | S23: -0.2161555228 | T23: -0.02571491902 | U23: 0.3193804944
B24: 65.5 | C24: 35.95444721 | D24: 0.02552394362 | E24: -72.15474984 | F24: 0.06599791794 | G24: 0.7499955292 | H24: -67.73374918 | I24: 0.0491304637 | J24: 0.6977110468 | M24: 65.5 | N24: 0.2849381482 | O24: -0.02061474307 | P24: -0.273966013 | Q24: -0.02940971079 | R24: 0.2844592832 | S24: -0.2625398439 | T24: -0.02569722575 | U24: 0.3193217262
B25: 66 | C25: 35.48754682 | D25: 0.02596488633 | E25: -72.00775195 | F25: 0.06600569963 | G25: 0.7500013761 | H25: -67.59547444 | I25: 0.04913620845 | J25: 0.6977171984 | M25: 66 | N25: 0.3105075639 | O25: -0.02580581204 | P25: -0.3223599834 | Q25: -0.02939239769 | R25: 0.2844279247 | S25: -0.308924165 | T25: -0.02568484531 | U25: 0.3192805337
B26: 66.5 | C26: 35.0213063 | D26: 0.0264373213 | E26: -71.86075406 | F26: 0.06601351327 | G26: 0.750007246 | H26: -67.4571997 | I26: 0.0491419768 | J26: 0.6977233742 | M26: 66.5 | N26: 0.3369536289 | O26: -0.02763427884 | P26: -0.3707539538 | Q26: -0.0293796039 | R26: 0.2844047222 | S26: -0.3553084862 | T26: -0.02567569711 | U26: 0.3192500579
B27: 67 | C27: 34.55506579 | D27: 0.02692295817 | E27: -71.71375617 | F27: 0.06602135906 | G27: 0.7500131388 | H27: -67.31892496 | I27: 0.04914776892 | J27: 0.6977295744 | M27: 67 | N27: 0.3633996938 | O27: -0.02919118659 | P27: -0.4191479242 | Q27: -0.02936976416 | R27: 0.28438686 | S27: -0.4016928073 | T27: -0.02566866153 | U27: 0.3192265982
B28: 67.5 | C28: 34.08882527 | D28: 0.02742235817 | E28: -71.56675828 | F28: 0.06602923719 | G28: 0.7500190548 | H28: -67.18065022 | I28: 0.04915358494 | J28: 0.6977357991 | M28: 67.5 | N28: 0.3898457588 | O28: -0.03053285027 | P28: -0.4675418945 | Q28: -0.02936196126 | R28: 0.2843726846 | S28: -0.4480771284 | T28: -0.02566308249 | U28: 0.3192079818
B29: 68 | C29: 33.62644656 | D29: 0.02786854234 | E29: -71.41976039 | F29: 0.06603714787 | G29: 0.7500249942 | H29: -67.04237548 | I29: 0.04915942502 | J29: 0.6977420485 | M29: 68 | N29: 0.4193259511 | O29: -0.03786398103 | P29: -0.5159358649 | Q29: -0.02935562206 | R29: 0.2843611614 | S29: -0.4944614495 | T29: -0.02565855013 | U29: 0.3191928492
B30: 68.5 | C30: 33.16786885 | D30: 0.02835120343 | E30: -71.2727625 | F30: 0.0660450913 | G30: 0.7500309569 | H30: -66.90410074 | I30: 0.0491652893 | J30: 0.6977483227 | M30: 68.5 | N30: 0.4534863737 | O30: -0.0402153677 | P30: -0.5643298353 | Q30: -0.02935037003 | R30: 0.2843516097 | S30: -0.5408457707 | T30: -0.02565479515 | U30: 0.3191803062
B31: 69 | C31: 32.709658 | D31: 0.02885941013 | E31: -71.12576461 | F31: 0.06605306769 | G31: 0.7500369433 | H31: -66.76582601 | I31: 0.04917117794 | J31: 0.6977546218 | M31: 69 | N31: 0.4882063352 | O31: -0.04112917348 | P31: -0.6127238057 | Q31: -0.02934594758 | R31: 0.2843435634 | S31: -0.5872300918 | T31: -0.02565163334 | U31: 0.3191697403
B32: 69.5 | C32: 32.25144715 | D32: 0.02938258167 | E32: -70.97876672 | F32: 0.06606107723 | G32: 0.7500429534 | H32: -66.62755127 | I32: 0.04917709109 | J32: 0.697760946 | M32: 69.5 | N32: 0.5229262967 | O32: -0.0419202264 | P32: -0.6611177761 | Q32: -0.02934217256 | R32: 0.2843366927 | S32: -0.6336144129 | T32: -0.02564893444 | U32: 0.3191607184
B33: 70 | C33: 31.79465441 | D33: 0.02996732756 | E33: -70.83176883 | F33: 0.06606912013 | G33: 0.7500489873 | H33: -66.48927653 | I33: 0.0491830289 | J33: 0.6977672955 | M33: 70 | N33: 0.5584773615 | O33: -0.04118483441 | P33: -0.7095117465 | Q33: -0.02933891247 | R33: 0.2843307574 | S33: -0.679998734 | T33: -0.02564660373 | U33: 0.319152925
B34: 70.5 | C34: 31.34316854 | D34: 0.03037924484 | E34: -70.68477094 | F34: 0.06607719662 | G34: 0.7500550452 | H34: -66.35100179 | I34: 0.04918899153 | J34: 0.6977736704 | M34: 70.5 | N34: 0.5986252448 | O34: -0.04965048182 | P34: -0.8173990663 | Q34: -0.02931907359 | R34: 0.2842946034 | S34: -0.7834236082 | T34: -0.02563242106 | U34: 0.3191054559
B35: 71 | C35: 30.89417423 | D35: 0.03088342267 | E35: -70.53777305 | F35: 0.06608530688 | G35: 0.7500611273 | H35: -66.21272705 | I35: 0.04919497913 | J35: 0.6977800709 | M35: 71 | N35: 0.6424284902 | O35: -0.05166654679 | P35: -0.9252863861 | Q35: -0.02930386054 | R35: 0.284266838 | S35: -0.8868484823 | T35: -0.0256215461 | U35: 0.3190690052
B36: 71.5 | C36: 30.44588443 | D36: 0.03142685412 | E36: -70.39077516 | F36: 0.06609345115 | G36: 0.7500672336 | H36: -66.07445231 | I36: 0.04920099186 | J36: 0.697786497 | M36: 71.5 | N36: 0.6872695581 | O36: -0.05198669934 | P36: -1.033173706 | Q36: -0.02929182434 | R36: 0.2842448452 | S36: -0.9902733564 | T36: -0.02561294254 | U36: 0.3190401354
B37: 72 | C37: 29.9976563 | D37: 0.03198924834 | E37: -70.24377727 | F37: 0.06610162962 | G37: 0.7500733645 | H37: -65.93617757 | I37: 0.04920702988 | J37: 0.697792949 | M37: 72 | N37: 0.7321482638 | O37: -0.05221873277 | P37: -1.141061026 | Q37: -0.02928206397 | R37: 0.2842269943 | S37: -1.093698231 | T37: -0.02560596605 | U37: 0.3190167044
B38: 72.5 | C38: 29.55386461 | D38: 0.03265154046 | E38: -70.09677938 | F38: 0.06610984253 | G38: 0.7500795198 | H38: -65.79790283 | I38: 0.04921309334 | J38: 0.6977994271 | M38: 72.5 | N38: 0.7799971227 | O38: -0.05113730082 | P38: -1.248948345 | Q38: -0.0292739897 | R38: 0.2842122159 | S38: -1.197123105 | T38: -0.02560019494 | U38: 0.3189973074
B39: 73 | C39: 29.1137556 | D39: 0.03306049966 | E39: -69.94978149 | F39: 0.06611809008 | G39: 0.7500857 | H39: -65.65962809 | I39: 0.04921918242 | J39: 0.6978059313 | M39: 73 | N39: 0.8315286489 | O39: -0.05789549554 | P39: -1.356835665 | Q39: -0.02926719937 | R39: 0.2841997795 | S39: -1.300547979 | T39: -0.02559534167 | U39: 0.3189809854
B40: 73.5 | C40: 28.67559672 | D40: 0.03355264104 | E40: -69.8027836 | F40: 0.06612637249 | G40: 0.750091905 | H40: -65.52135335 | I40: 0.04922529726 | J40: 0.6978124619 | M40: 73.5 | N40: 0.8858347763 | O40: -0.06084374797 | P40: -1.464722985 | Q40: -0.02926140926 | R40: 0.2841891695 | S40: -1.403972853 | T40: -0.0255912034 | U40: 0.3189670607
B41: 74 | C41: 28.23932241 | D41: 0.03412955971 | E41: -69.65578571 | F41: 0.06613469 | G41: 0.750098135 | H41: -65.38307862 | I41: 0.04923143804 | J41: 0.6978190189 | M41: 74 | N41: 0.9428221969 | O41: -0.06076496845 | P41: -1.572610305 | Q41: -0.02925641356 | R41: 0.2841800108 | S41: -1.507397727 | T41: -0.02558763297 | U41: 0.3189550414
B42: 74.5 | C42: 27.80505587 | D42: 0.03479998076 | E42: -69.50878782 | F42: 0.06614304281 | G42: 0.7501043902 | H42: -65.24480388 | I42: 0.04923760492 | J42: 0.6978256027 | M42: 74.5 | N42: 1.001086076 | O42: -0.05949594649 | P42: -1.680497625 | Q42: -0.02925205925 | R42: 0.2841720249 | S42: -1.610822601 | T42: -0.025584521 | U42: 0.3189445615
B43: 75 | C43: 27.37413168 | D43: 0.03552821147 | E43: -69.36178994 | F43: 0.06615143116 | G43: 0.7501106708 | H43: -65.10652914 | I43: 0.04924379807 | J43: 0.6978322132 | M43: 75 | N43: 1.061756361 | O43: -0.05816548777 | P43: -1.788384944 | Q43: -0.02924823028 | R43: 0.284165 | S43: -1.714247475 | T43: -0.02558178452 | U43: 0.3189353429
B44: 75.5 | C44: 26.94756698 | D44: 0.03592739357 | E44: -69.21479205 | F44: 0.06615985527 | G44: 0.7501169768 | H44: -64.9682544 | I44: 0.04925001766 | J44: 0.6978388508 | M44: 75.5 | N44: 1.126786132 | O44: -0.06360219445 | P44: -1.984072698 | Q44: -0.02923272751 | R44: 0.284136534 | S44: -1.901870899 | T44: -0.02557070548 | U44: 0.3188979903
B45: 76 | C45: 26.52119889 | D45: 0.03634742267 | E45: -69.06779416 | F45: 0.06616831538 | G45: 0.7501233085 | H45: -64.82997966 | I45: 0.04925626385 | J45: 0.6978455155 | M45: 76 | N45: 1.192086089 | O45: -0.06818181686 | P45: -2.179760451 | Q45: -0.02922000789 | R45: 0.2841131503 | S45: -2.089494324 | T45: -0.0255616159 | U45: 0.3188673094
B46: 76.5 | C46: 26.09918936 | D46: 0.03695470623 | E46: -68.92079627 | F46: 0.06617681171 | G46: 0.750129666 | H46: -64.69170492 | I46: 0.04926253682 | J46: 0.6978522075 | M46: 76.5 | N46: 1.263375349 | O46: -0.0678287209 | P46: -2.375448204 | Q46: -0.02920938368 | R46: 0.2840935992 | S46: -2.277117748 | T46: -0.02555402407 | U46: 0.3188416593
B47: 77 | C47: 25.68102189 | D47: 0.03773795191 | E47: -68.77379838 | F47: 0.06618534449 | G47: 0.7501360495 | H47: -64.55343018 | I47: 0.04926883673 | J47: 0.697858927 | M47: 77 | N47: 1.337208683 | O47: -0.06573565715 | P47: -2.571135957 | Q47: -0.0292003765 | R47: 0.28407701 | S47: -2.464741172 | T47: -0.02554758797 | U47: 0.3188198964
B48: 77.5 | C48: 25.2643812 | D48: 0.03861113653 | E48: -68.62680049 | F48: 0.06619391397 | G48: 0.750142459 | H48: -64.41515544 | I48: 0.04927516377 | J48: 0.6978656742 | M48: 77.5 | N48: 1.412053 | O48: -0.06318291278 | P48: -2.76682371 | Q48: -0.02919264327 | R48: 0.2840627569 | S48: -2.652364596 | T48: -0.02554206236 | U48: 0.3188011993
B49: 78 | C49: 24.85351347 | D49: 0.03900386235 | E49: -68.4798026 | F49: 0.06620252037 | G49: 0.7501488949 | H49: -64.2768807 | I49: 0.04928151811 | J49: 0.6978724492 | M49: 78 | N49: 1.492670264 | O49: -0.06743001603 | P49: -2.962511464 | Q49: -0.02918593158 | R49: 0.2840503789 | S49: -2.83998802 | T49: -0.0255372668 | U49: 0.3187849627
B50: 78.5 | C50: 24.44280099 | D50: 0.03939611807 | E50: -68.33280471 | F50: 0.06621116394 | G50: 0.7501553572 | H50: -64.13860596 | I50: 0.04928789993 | J50: 0.6978792522 | M50: 78.5 | N50: 1.573442793 | O50: -0.07137290112 | P50: -3.158199217 | Q50: -0.02918005155 | R50: 0.2840395289 | S50: -3.027611445 | T50: -0.02553306556 | U50: 0.318770731
B51: 79 | C51: 24.03407166 | D51: 0.0398878977 | E51: -68.18580682 | F51: 0.06621984493 | G51: 0.7501618461 | H51: -64.00033123 | I51: 0.04929430939 | J51: 0.6978860833 | M51: 79 | N51: 1.656847325 | O51: -0.07343031728 | P51: -3.35388697 | Q51: -0.02917485762 | R51: 0.2840299403 | S51: -3.215234869 | T51: -0.02552935462 | U51: 0.3187581544
B52: 79.5 | C52: 23.63386389 | D52: 0.04077245069 | E52: -68.03880893 | F52: 0.06622856356 | G52: 0.7501683618 | H52: -63.86205649 | I52: 0.0493007467 | J52: 0.6978929429 | M52: 79.5 | N52: 1.748246242 | O52: -0.07103471644 | P52: -3.549574723 | Q52: -0.02917023632 | R52: 0.2840214053 | S52: -3.402858293 | T52: -0.02552605288 | U52: 0.3187469601
B53: 80 | C53: 23.23462862 | D53: 0.04173266415 | E53: -67.89181104 | F53: 0.0662373201 | G53: 0.7501749044 | H53: -63.72378175 | I53: 0.04930721202 | J53: 0.6978998309 | M53: 80 | N53: 1.840315856 | O53: -0.06852705764 | P53: -3.745262477 | Q53: -0.02916609791 | R53: 0.2840137592 | S53: -3.590481717 | T53: -0.02552309618 | U53: 0.318736932
B54: 80.5 | C54: 22.83954312 | D54: 0.04232527911 | E54: -67.1733337 | F54: 0.06625114059 | G54: 0.7501852278 | H54: -63.04894373 | I54: 0.04931741634 | J54: 0.6979106998 | M54: 80.5 | N54: 1.936535241 | O54: -0.0698369929 | P54: -4.044794192 | Q54: -0.02915370367 | R54: 0.2839908437 | S54: -3.877712725 | T54: -0.02551424139 | U54: 0.318706879
B55: 81 | C55: 22.44702044 | D55: 0.04268604151 | E55: -66.45485636 | F55: 0.06626526029 | G55: 0.7501957712 | H55: -62.37410571 | I55: 0.04932784167 | J55: 0.6979218006 | M55: 81 | N55: 2.035317451 | O55: -0.0731053258 | P55: -4.344325908 | Q55: -0.02914301829 | R55: 0.283971068 | S55: -4.164943732 | T55: -0.02550660779 | U55: 0.3186809459
B56: 81.5 | C56: 22.05449776 | D56: 0.04305990881 | E56: -65.73637903 | F56: 0.06627968903 | G56: 0.7502065416 | H56: -61.69926769 | I56: 0.04933849528 | J56: 0.6979331409 | M56: 81.5 | N56: 2.13409966 | O56: -0.07605127869 | P56: -4.643857623 | Q56: -0.02913371115 | R56: 0.2839538284 | S56: -4.45217474 | T56: -0.02549995905 | U56: 0.31865834
B57: 82 | C57: 21.6706265 | D57: 0.04386434322 | E57: -65.01790169 | F57: 0.06629443706 | G57: 0.7502175465 | H57: -61.02442968 | I57: 0.04934938473 | J57: 0.6979447286 | M57: 82 | N57: 2.24077872 | O57: -0.07546209353 | P57: -4.943389339 | Q57: -0.02912553174 | R57: 0.2839386662 | S57: -4.739405748 | T57: -0.02549411614 | U57: 0.3186384594
B58: 82.5 | C58: 21.2911163 | D58: 0.04491312982 | E58: -64.29942436 | F58: 0.06630951509 | G58: 0.7502287935 | H58: -60.34959166 | I58: 0.04936051795 | J58: 0.6979565718 | M58: 82.5 | N58: 2.352320138 | O58: -0.07300967264 | P58: -5.242921054 | Q58: -0.02911828681 | R58: 0.2839252274 | S58: -5.026636755 | T58: -0.02548894091 | U58: 0.3186208395
B59: 83 | C59: 20.9121842 | D59: 0.0459403898 | E59: -63.58094702 | F59: 0.06632493434 | G59: 0.7502402908 | H59: -59.67475364 | I59: 0.04937190322 | J59: 0.697968679 | M59: 83 | N59: 2.464439669 | O59: -0.07115749425 | P59: -5.54245277 | Q59: -0.02911182486 | R59: 0.283913234 | S59: -5.313867763 | T59: -0.02548432511 | U59: 0.3186051152
B60: 83.5 | C60: 20.54012511 | D60: 0.04625814432 | E60: -62.86246969 | F60: 0.06634070652 | G60: 0.7502520468 | H60: -58.99991562 | I60: 0.04938354919 | J60: 0.6979810593 | M60: 83.5 | N60: 2.583432209 | O60: -0.07387437499 | P60: -5.841984486 | Q60: -0.02910602548 | R60: 0.2839024646 | S60: -5.60109877 | T60: -0.02548018268 | U60: 0.3185909964
B61: 84 | C61: 20.16806603 | D61: 0.04658782662 | E61: -62.14399235 | F61: 0.06635684387 | G61: 0.7502640704 | H61: -58.32507761 | I61: 0.04939546492 | J61: 0.6979937218 | M61: 84 | N61: 2.702424748 | O61: -0.07633817849 | P61: -6.141516201 | Q61: -0.02910079173 | R61: 0.2838927409 | S61: -5.888329778 | T61: -0.02547644435 | U61: 0.3185782491
B62: 84.5 | C62: 19.80082241 | D62: 0.04718479184 | E62: -61.42551502 | F62: 0.06637335924 | G62: 0.7502763708 | H62: -57.65023959 | I62: 0.0494076599 | J62: 0.6980066765 | M62: 84.5 | N62: 2.825019954 | O62: -0.07740613491 | P62: -6.441047917 | Q62: -0.02909604471 | R62: 0.2838839178 | S62: -6.175560786 | T62: -0.02547305374 | U62: 0.3185666827
B63: 85 | C63: 19.4391126 | D63: 0.0481034072 | E63: -60.70703768 | F63: 0.06639026606 | G63: 0.7502889577 | H63: -56.97540157 | I63: 0.04942014406 | J63: 0.6980199335 | M63: 85 | N63: 2.953059366 | O63: -0.07668087421 | P63: -6.740579632 | Q63: -0.02909171953 | R63: 0.2838758756 | S63: -6.462791793 | T63: -0.0254699645 | U63: 0.3185561403
B64: 85.5 | C64: 19.0815169 | D64: 0.04928479594 | E64: -59.98856034 | F64: 0.06640757843 | G64: 0.7503018411 | H64: -56.30056355 | I64: 0.0494329278 | J64: 0.6980335035 | M64: 85.5 | N64: 3.086192204 | O64: -0.07448743084 | P64: -7.139160456 | Q64: -0.02908158627 | R64: 0.2838570221 | S64: -6.845059228 | T64: -0.02546272704 | U64: 0.318531427
B65: 86 | C65: 18.72672308 | D65: 0.0501760663 | E65: -59.27008301 | F65: 0.0664253111 | G65: 0.7503150317 | H65: -55.62572553 | I65: 0.04944602204 | J65: 0.6980473978 | M65: 86 | N65: 3.222126921 | O65: -0.07390176887 | P65: -7.537741281 | Q65: -0.02907252448 | R65: 0.2838401483 | S65: -7.227326662 | T65: -0.02545625511 | U65: 0.31850931
B66: 86.5 | C66: 18.37723563 | D66: 0.05045023519 | E66: -58.55160567 | F66: 0.06644347957 | G66: 0.7503285406 | H66: -54.95088752 | I66: 0.04945943824 | J66: 0.6980616281 | M66: 86.5 | N66: 3.36336801 | O66: -0.07595772535 | P66: -7.936322105 | Q66: -0.02906437275 | R66: 0.2838249578 | S66: -7.609594096 | T66: -0.02545043333 | U66: 0.3184894007
B67: 87 | C67: 18.03002592 | D67: 0.05086794255 | E67: -57.83312834 | F67: 0.0664621001 | G67: 0.7503423795 | H67: -54.2760495 | I67: 0.04947318841 | J67: 0.6980762067 | M67: 87 | N67: 3.506383954 | O67: -0.07737291344 | P67: -8.334902929 | Q67: -0.02905700055 | R67: 0.2838112108 | S67: -7.99186153 | T67: -0.02544516843 | U67: 0.3184713841
B68: 87.5 | C68: 17.68886507 | D68: 0.05166203014 | E68: -57.114651 | F68: 0.06648118979 | G68: 0.7503565607 | H68: -53.60121148 | I68: 0.04948728519 | J68: 0.6980911466 | M68: 87.5 | N68: 3.654113265 | O68: -0.07748341367 | P68: -8.733483753 | Q68: -0.02905030116 | R68: 0.2837987108 | S68: -8.374128965 | T68: -0.02544038415 | U68: 0.3184550027
B69: 88 | C69: 17.34818783 | D69: 0.05251796533 | E69: -56.39617367 | F69: 0.06650076659 | G69: 0.7503710969 | H69: -52.92637346 | I69: 0.04950174184 | J69: 0.6981064615 | M69: 88 | N69: 3.802420862 | O69: -0.07744499733 | P69: -9.132064577 | Q69: -0.02904418649 | R69: 0.2837872955 | S69: -8.756396399 | T69: -0.02543601755 | U69: 0.3184400434
B70: 88.5 | C70: 17.01446111 | D70: 0.05384017046 | E70: -55.67769633 | F70: 0.06652084938 | G70: 0.7503860016 | H70: -52.25153545 | I70: 0.04951657232 | J70: 0.6981221655 | M70: 88.5 | N70: 3.959039415 | O70: -0.07546865365 | P70: -9.530645401 | Q70: -0.0290385832 | R70: 0.2837768296 | S70: -9.138663833 | T70: -0.02543201622 | U70: 0.3184263289
B71: 89 | C71: 16.68432855 | D71: 0.05472675071 | E71: -54.95921899 | F71: 0.06654145803 | G71: 0.7504012892 | H71: -51.57669743 | I71: 0.04953179133 | J71: 0.6981382738 | M71: 89 | N71: 4.119252122 | O71: -0.07507095969 | P71: -9.929226226 | Q71: -0.02903342972 | R71: 0.2837671994 | S71: -9.520931268 | T71: -0.02542833618 | U71: 0.3184137099
B72: 89.5 | C72: 16.35925182 | D72: 0.05494421569 | E72: -54.24074166 | F72: 0.06656261349 | G72: 0.7504169744 | H72: -50.90185941 | I72: 0.04954741433 | J72: 0.6981548021 | M72: 89.5 | N72: 4.284520665 | O72: -0.07663773085 | P72: -10.32780705 | Q72: -0.02902867395 | R72: 0.2837583086 | S72: -9.903198702 | T72: -0.02542494021 | U72: 0.3184020602
B73: 90 | C73: 16.04081096 | D73: 0.05560728446 | E73: -53.52226432 | F73: 0.06658433779 | G73: 0.7504330731 | H73: -50.22702139 | I73: 0.04956345764 | J73: 0.698171767 | M73: 90 | N73: 4.455174752 | O73: -0.07696760776 | P73: -10.72638787 | Q73: -0.02902427159 | R73: 0.2837500753 | S73: -10.28546614 | T73: -0.02542179665 | U73: 0.3183912722
B74: 90.5 | C74: 15.72457617 | D74: 0.05644631216 | E74: -52.80378699 | F74: 0.0666066542 | G74: 0.7504496018 | H74: -49.55218337 | I74: 0.04957993843 | J74: 0.6981891862 | M74: 90.5 | N74: 4.627619248 | O74: -0.07691579737 | P74: -11.19569099 | Q74: -0.02901597021 | R74: 0.2837345414 | S74: -10.73562263 | T74: -0.02541586909 | U74: 0.3183709196
B75: 91 | C75: 15.40834139 | D75: 0.0573211978 | E75: -52.08530965 | F75: 0.06662958726 | G75: 0.7504665779 | H75: -48.87734536 | I75: 0.04959687485 | J75: 0.6982070781 | M75: 91 | N75: 4.800063743 | O75: -0.0768677044 | P75: -11.6649941 | Q75: -0.02900833667 | R75: 0.2837202474 | S75: -11.18577913 | T75: -0.02541041857 | U75: 0.3183521924
B76: 91.5 | C76: 15.09611393 | D76: 0.05851527756 | E76: -51.36683232 | F76: 0.06665316289 | G76: 0.7504840199 | H76: -48.20250734 | I76: 0.04961428607 | J76: 0.6982254621 | M76: 91.5 | N76: 4.977136191 | O76: -0.07596373443 | P76: -12.13429722 | Q76: -0.02900129348 | R76: 0.2837070505 | S76: -11.63593562 | T76: -0.02540538971 | U76: 0.3183349035
B77: 92 | C77: 14.79041356 | D77: 0.05965207893 | E77: -50.64835498 | F77: 0.06667740847 | G77: 0.7505019472 | H77: -47.52766932 | I77: 0.04963219232 | J77: 0.698244359 | M77: 92 | N77: 5.16135344 | O77: -0.07510212059 | P77: -12.60360033 | Q77: -0.02899477472 | R77: 0.2836948291 | S77: -12.08609212 | T77: -0.02540073542 | U77: 0.3183188932
B78: 92.5 | C78: 14.49169881 | D78: 0.0598355532 | E78: -49.92987764 | F78: 0.06670235298 | G78: 0.7505203804 | H78: -46.8528313 | I78: 0.04965061503 | J78: 0.6982637904 | M78: 92.5 | N78: 5.352482469 | O78: -0.07622493639 | P78: -13.07290345 | Q78: -0.02898872391 | R78: 0.2836834788 | S78: -12.53624861 | T78: -0.02539641534 | U78: 0.3183040249
B79: 93 | C79: 14.20171158 | D79: 0.0606786471 | E79: -49.21140031 | F79: 0.06672802707 | G79: 0.7505393412 | H79: -46.17799329 | I79: 0.04966957688 | J79: 0.6982837795 | M79: 93 | N79: 5.550988763 | O79: -0.07603993788 | P79: -13.54220656 | Q79: -0.02898309241 | R79: 0.2836729098 | S79: -12.98640511 | T79: -0.02539239473 | U79: 0.3182901805
B80: 93.5 | C80: 13.91172435 | D80: 0.06155831685 | E80: -48.49292297 | F80: 0.06675446324 | G80: 0.7505588525 | H80: -45.50315527 | I80: 0.04968910187 | J80: 0.6983043504 | M80: 93.5 | N80: 5.749495056 | O80: -0.07586764724 | P80: -14.01150968 | Q80: -0.0289778381 | R80: 0.283663044 | S80: -13.43656161 | T80: -0.02538864349 | U80: 0.3182772578
B81: 94 | C81: 13.62173712 | D81: 0.06247699537 | E81: -47.77444564 | F81: 0.06678169592 | G81: 0.7505789388 | H81: -44.82831725 | I81: 0.04970921547 | J81: 0.698325529 | M81: 94 | N81: 5.948001349 | O81: -0.07570679854 | P81: -14.48081279 | Q81: -0.02897292431 | R81: 0.2836538136 | S81: -13.8867181 | T81: -0.02538513543 | U81: 0.3182651676
B82: 94.5 | C82: 13.33174989 | D82: 0.06343733625 | E82: -47.0559683 | F82: 0.06680976167 | G82: 0.7505996257 | H82: -44.15347923 | I82: 0.0497299447 | J82: 0.6983473427 | M82: 94.5 | N82: 6.146507642 | O82: -0.07555628862 | P82: -14.95011591 | Q82: -0.02896831898 | R82: 0.283645159 | S82: -14.3368746 | T82: -0.02538184764 | U82: 0.3182538321
B83: 95 | C83: 13.04760057 | D83: 0.06491871708 | E83: -46.33749097 | F83: 0.0668386993 | G83: 0.7506209406 | H83: -43.47864121 | I83: 0.04975131828 | J83: 0.6983698204 | M83: 95 | N83: 6.351525587 | O83: -0.07446628477 | P83: -15.41941902 | Q83: -0.02896399393 | R83: 0.283637028 | S83: -14.78703109 | T83: -0.02537876 | U83: 0.3182431828
B84: 95.5 | C84: 12.77632266 | D84: 0.06523313698 | E84: -45.61901363 | F84: 0.06686855008 | G84: 0.7506429126 | H84: -42.8038032 | I84: 0.04977336671 | J84: 0.6983929929 | M84: 95.5 | N84: 6.569520938 | O84: -0.07500484887 | P84: -15.91837749 | Q84: -0.02895715305 | R84: 0.2836241611 | S84: -15.26569556 | T84: -0.02537387643 | U84: 0.3182263313
B85: 96 | C85: 12.51343764 | D85: 0.06610907069 | E85: -44.9005363 | F85: 0.06689935793 | G85: 0.7506655726 | H85: -42.12896518 | I85: 0.04979612247 | J85: 0.698416893 | M85: 96 | N85: 6.794978859 | O85: -0.07472416973 | P85: -16.41733597 | Q85: -0.0289507279 | R85: 0.2836120693 | S85: -15.74436003 | T85: -0.02536928975 | U85: 0.3182104956
B86: 96.5 | C86: 12.25055263 | D86: 0.06702413371 | E86: -44.18205896 | F86: 0.06693116962 | G86: 0.7506889533 | H86: -41.45412716 | I86: 0.04981962016 | J86: 0.6984415554 | M86: 96.5 | N86: 7.020436779 | O86: -0.07446136402 | P86: -16.91629444 | Q86: -0.02894468171 | R86: 0.2836006844 | S86: -16.22302449 | T86: -0.02536497369 | U86: 0.3181955865
B87: 97 | C87: 11.98766761 | D87: 0.06798100789 | E87: -43.46358162 | F87: 0.06696403504 | G87: 0.7507130897 | H87: -40.77928914 | I87: 0.04984389666 | J87: 0.6984670172 | M87: 97 | N87: 7.2458947 | O87: -0.07421477717 | P87: -17.41525291 | Q87: -0.02893898189 | R87: 0.2835899463 | S87: -16.70168896 | T87: -0.025360905 | U87: 0.3181815249
B88: 97.5 | C88: 11.72478259 | D88: 0.06898262589 | E88: -42.74510429 | F88: 0.06699800741 | G88: 0.750738019 | H88: -40.10445113 | I88: 0.04986899134 | J88: 0.698493318 | M88: 97.5 | N88: 7.47135262 | O88: -0.07398295271 | P88: -17.91421138 | Q88: -0.02893359953 | R88: 0.2835798014 | S88: -17.18035343 | T88: -0.02535706299 | U88: 0.3181682407
B89: 98 | C89: 11.46189757 | D89: 0.07003220121 | E89: -42.02662695 | F89: 0.06703314363 | G89: 0.7507637811 | H89: -39.42961311 | I89: 0.04989494627 | J89: 0.6985204999 | M89: 98 | N89: 7.696810541 | O89: -0.07376460351 | P89: -18.41316986 | Q89: -0.02892850881 | R89: 0.2835702019 | S89: -17.6590179 | T89: -0.02535342923 | U89: 0.318155671
B90: 98.5 | C90: 11.20891847 | D90: 0.07102720085 | E90: -41.30814962 | F90: 0.06706950454 | G90: 0.7507904182 | H90: -38.75477509 | I90: 0.04992180647 | J90: 0.6985486078 | M90: 98.5 | N90: 7.932516339 | O90: -0.07347448778 | P90: -18.91212833 | Q90: -0.02892368666 | R90: 0.2835611049 | S90: -18.13768236 | T90: -0.02534998724 | U90: 0.3181437597
B91: 99 | C91: 10.97347483 | D91: 0.07193050542 | E91: -40.58967228 | F91: 0.06710715531 | G91: 0.7508179757 | H91: -38.07993707 | I91: 0.04994962012 | J91: 0.6985776901 | M91: 99 | N91: 8.185308763 | O91: -0.07312263386 | P91: -19.4110868 | Q91: -0.02891911237 | R91: 0.283552472 | S91: -18.61634683 | T91: -0.02534672223 | U91: 0.3181324565
B92: 99.5 | C92: 10.7380312 | D92: 0.07287504879 | E92: -39.87119495 | F92: 0.06714616582 | G92: 0.7508465023 | H92: -37.40509905 | I92: 0.04997843892 | J92: 0.6986077982 | M92: 99.5 | N92: 8.438101187 | O92: -0.07279161814 | P92: -19.91004528 | Q92: -0.02891476732 | R92: 0.2835442685 | S92: -19.0950113 | T92: -0.0253436209 | U92: 0.3181217159
B93: 100 | C93: 10.50258757 | D93: 0.07386372094 | E93: -39.15271761 | F93: 0.06718661107 | G93: 0.7508760499 | H93: -36.73026104 | I93: 0.05000831835 | J93: 0.6986389873 | M93: 100 | N93: 8.690893612 | O93: -0.0724796427 | P93: -20.40900375 | Q93: -0.02891063468 | R93: 0.2835364633 | S93: -19.57367577 | T93: -0.02534067123 | U93: 0.3181114969
B94: 100.5 | C94: 10.26714393 | D94: 0.07489968838 | E94: -38.43424027 | F94: 0.0672285717 | G94: 0.7509066744 | H94: -36.05542302 | I94: 0.05003931807 | J94: 0.6986713168 | M94: 100.5 | N94: 8.943686036 | O94: -0.07218511063 | P94: -20.80729684 | Q94: -0.02890419658 | R94: 0.2835242981 | S94: -19.95587545 | T94: -0.02533607612 | U94: 0.3180955703
B95: 101 | C95: 10.0317003 | D95: 0.07598642797 | E95: -37.71576294 | F95: 0.0672721345 | G95: 0.7509384356 | H95: -35.380585 | I95: 0.05007150228 | J95: 0.6987048504 | M95: 101 | N95: 9.19647846 | O95: -0.07190659876 | P95: -21.20558993 | Q95: -0.02889800024 | R95: 0.2835125834 | S95: -20.33807514 | T95: -0.02533165369 | U95: 0.3180802342
B96: 101.5 | C96: 9.796256662 | D96: 0.07712776596 | E96: -36.9972856 | F96: 0.06731739303 | G96: 0.7509713981 | H96: -34.70574698 | I96: 0.0501049402 | J96: 0.6987396566 | M96: 101.5 | N96: 9.449270885 | O96: -0.07164283465 | P96: -21.60388302 | Q96: -0.02889203231 | R96: 0.2835012945 | S96: -20.72027482 | T96: -0.02532739436 | U96: 0.3180654561
B97: 102 | C97: 9.576572581 | D97: 0.07817870572 | E97: -36.27880827 | F97: 0.06736444825 | G97: 0.7510056314 | H97: -34.03090897 | I97: 0.05013970653 | J97: 0.6987758092 | M97: 102 | N97: 9.717580743 | O97: -0.07131577725 | P97: -22.00217611 | Q97: -0.02888628037 | R97: 0.2834904087 | S97: -21.1024745 | T97: -0.02532328929 | U97: 0.3180512063
B98: 102.5 | C98: 9.36837447 | D98: 0.07914649963 | E98: -35.56033093 | F98: 0.06741340934 | G98: 0.7510412104 | H98: -33.35607095 | I98: 0.05017588205 | J98: 0.6988133879 | M98: 102.5 | N98: 9.997561758 | O98: -0.07093377594 | P98: -22.4004692 | Q98: -0.02888073292 | R98: 0.2834799047 | S98: -21.48467419 | T98: -0.02531933023 | U98: 0.3180374569
B99: 103 | C99: 9.16017636 | D99: 0.08016014619 | E99: -34.8418536 | F99: 0.06746439445 | G99: 0.7510782161 | H99: -32.68123293 | I99: 0.0502135542 | J99: 0.6988524789 | M99: 103 | N99: 10.27754277 | O99: -0.07057229844 | P99: -22.79876229 | Q99: -0.02887537923 | R99: 0.2834697628 | S99: -21.86687387 | T99: -0.02531550955 | U99: 0.3180241819
B100: 103.5 | C100: 8.951978249 | D100: 0.08122298312 | E100: -34.12337626 | F100: 0.06751753176 | G100: 0.7511167359 | H100: -32.00639491 | I100: 0.05025281782 | J100: 0.6988931752 | M100: 103.5 | N100: 10.55752379 | O100: -0.070229734 | P100: -23.19705538 | Q100: -0.02887020933 | R100: 0.2834599646 | S100: -22.24907356 | T100: -0.0253118201 | U100: 0.3180113573
B101: 104 | C101: 8.743780138 | D101: 0.08233868015 | E101: -33.40489893 | F101: 0.06757296048 | G101: 0.7511568648 | H101: -31.33155689 | I101: 0.05029377594 | J101: 0.6989355778 | M101: 104 | N101: 10.8375048 | O101: -0.06990463612 | P101: -23.59534847 | Q101: -0.02886521392 | R101: 0.283450493 | S101: -22.63127324 | T101: -0.02530825524 | U101: 0.3179989605
B102: 104.5 | C102: 8.535582027 | D102: 0.08351128131 | E102: -32.68642159 | F102: 0.06763083209 | G102: 0.7511987058 | H102: -30.65671888 | I102: 0.05033654066 | J102: 0.6989797964 | M102: 104.5 | N102: 11.11748582 | O102: -0.06959570214 | P102: -23.99364155 | Q102: -0.0288603843 | R102: 0.2834413318 | S102: -23.01347292 | T102: -0.02530480876 | U102: 0.3179869704
B103: 105 | C103: 8.330817062 | D103: 0.08519246379 | E103: -31.96794425 | F103: 0.06769131172 | G103: 0.7512423708 | H103: -29.98188086 | I103: 0.05038123422 | J103: 0.6990259501 | M103: 105 | N103: 11.40088182 | O103: -0.06902289315 | P103: -24.39193464 | Q103: -0.02885571236 | R103: 0.283432466 | S103: -23.39567261 | T103: -0.02530147486 | U103: 0.3179753674
B104: 105.5 | C104: 8.136345499 | D104: 0.08622350319 | E104: -31.21452367 | F104: 0.06771915985 | G104: 0.7512624554 | H104: -29.27482931 | I104: 0.05040181413 | J104: 0.6990471821 | M104: 105.5 | N104: 11.69454249 | O104: -0.06874081426 | P104: -24.79022773 | Q104: -0.02885119051 | R104: 0.2834238816 | S104: -23.77787229 | T104: -0.02529824812 | U104: 0.317964133
B105: 106 | C105: 7.952072374 | D105: 0.08690801759 | E105: -30.46110308 | F105: 0.06774838712 | G105: 0.7512835203 | H105: -28.56777777 | I105: 0.05042341361 | J105: 0.6990694521 | M105: 106 | N105: 11.99843203 | O105: -0.06855081619 | P105: -25.18852082 | Q105: -0.02884681162 | R105: 0.2834155654 | S105: -24.16007198 | T105: -0.02529512345 | U105: 0.3179532499
B106: 106.5 | C106: 7.770400348 | D106: 0.08799013342 | E106: -29.7076825 | F106: 0.0677790986 | G106: 0.7513056392 | H106: -27.86072623 | I106: 0.05044611036 | J106: 0.6990928383 | M106: 106.5 | N106: 12.30493549 | O106: -0.06817218642 | P106: -25.58681391 | Q106: -0.02884256901 | R106: 0.283407505 | S106: -24.54227166 | T106: -0.02529209608 | U106: 0.3179427019
B107: 107 | C107: 7.588728323 | D107: 0.08912637467 | E107: -28.95426191 | F107: 0.06781141026 | G107: 0.7513288932 | H107: -27.15367468 | I107: 0.05046999016 | J107: 0.6991174266 | M107: 107 | N107: 12.61143894 | O107: -0.06781167494 | P107: -25.985107 | Q107: -0.02883845643 | R107: 0.2833996888 | S107: -24.92447135 | T107: -0.02528916154 | U107: 0.3179324738
B108: 107.5 | C108: 7.407056297 | D108: 0.09032090638 | E108: -28.20084132 | F108: 0.06784545054 | G108: 0.7513533719 | H108: -26.44662314 | I108: 0.05049514799 | J108: 0.6991433124 | M108: 107.5 | N108: 12.9179424 | O108: -0.06746801163 | P108: -26.38340009 | Q108: -0.02883446799 | R108: 0.2833921059 | S108: -25.30667103 | T108: -0.02528631563 | U108: 0.3179225512
B109: 108 | C109: 7.225384271 | D109: 0.09157833219 | E109: -27.44742074 | F109: 0.06788136195 | G109: 0.7513791747 | H109: -25.73957159 | I109: 0.05052168927 | J109: 0.6991706009 | M109: 108 | N109: 13.22444585 | O109: -0.06714004239 | P109: -26.78169318 | Q109: -0.02883059815 | R109: 0.2833847459 | S109: -25.68887071 | T109: -0.02528355437 | U109: 0.3179129206
B110: 108.5 | C110: 7.049759596 | D110: 0.09384206178 | E110: -26.69400015 | F110: 0.06791930314 | G110: 0.751406412 | H110: -25.03252005 | I110: 0.05054973134 | J110: 0.6991994095 | M110: 108.5 | N110: 13.53721452 | O110: -0.06639463028 | P110: -27.17998627 | Q110: -0.02882684169 | R110: 0.2833775992 | S110: -26.0710704 | T110: -0.02528087407 | U110: 0.3179035694
B111: 109 | C111: 6.878777089 | D111: 0.09575199106 | E111: -25.94057957 | F111: 0.0679594512 | G111: 0.7514352068 | H111: -24.32546851 | I111: 0.0505794052 | J111: 0.6992298688 | M111: 109 | N111: 13.85470876 | O111: -0.06580294756 | P111: -27.57827936 | Q111: -0.02882319371 | R111: 0.2833706567 | S111: -26.45327008 | T111: -0.0252782712 | U111: 0.3178944855
B112: 109.5 | C112: 6.713878525 | D112: 0.0954899218 | E112: -25.18715898 | F112: 0.06800200444 | G112: 0.7514656968 | H112: -23.61841696 | I112: 0.05061085755 | J112: 0.6992621247 | M112: 109.5 | N112: 14.17828695 | O112: -0.06596023186 | P112: -27.97657245 | Q112: -0.02881964957 | R112: 0.2833639097 | S112: -26.83546977 | T112: -0.02527574246 | U112: 0.3178856576
B113: 110 | C113: 6.555996084 | D113: 0.09638812723 | E113: -24.43373839 | F113: 0.06804718567 | G113: 0.7514980361 | H113: -22.91136542 | I113: 0.05064425321 | J113: 0.6992963412 | M113: 110 | N113: 14.50867489 | O113: -0.06567191368 | P113: -28.37486554 | Q113: -0.02881620491 | R113: 0.28335735 | S113: -27.21766945 | T113: -0.02527328472 | U113: 0.3178770751
B114: 110.5 | C114: 6.399648457 | D114: 0.09759548083 | E114: -23.79123556 | F114: 0.06807430019 | G114: 0.7515174273 | H114: -22.30856928 | I114: 0.05066429533 | J114: 0.6993168599 | M114: 110.5 | N114: 14.84055251 | O114: -0.06530244435 | P114: -28.77315863 | Q114: -0.02881285559 | R114: 0.2833509701 | S114: -27.59986913 | T114: -0.02527089504 | U114: 0.3178687279
B115: 111 | C115: 6.243300831 | D115: 0.09886617017 | E115: -23.14873273 | F115: 0.06810292135 | G115: 0.7515378823 | H115: -21.70577315 | I115: 0.05068545146 | J115: 0.6993385061 | M115: 111 | N115: 15.17243012 | O115: -0.06494886495 | P115: -29.17145172 | Q115: -0.0288095977 | R115: 0.2833447625 | S115: -27.98206882 | T115: -0.02526857063 | U115: 0.3178606065
B116: 111.5 | C116: 6.086953204 | D116: 0.1002053132 | E116: -22.5062299 | F116: 0.06813317833 | G116: 0.7515594914 | H116: -21.10297701 | I116: 0.05070781715 | J116: 0.6993613754 | M116: 111.5 | N116: 15.50430774 | O116: -0.06461017198 | P116: -29.56974481 | Q116: -0.02880642756 | R116: 0.2833387204 | S116: -28.3642685 | T116: -0.02526630886 | U116: 0.3178527017
B117: 112 | C117: 5.93715579 | D117: 0.1028353061 | E117: -21.86372706 | F117: 0.06816521547 | G117: 0.751582355 | H117: -20.50018088 | I117: 0.05073149918 | J117: 0.6993855743 | M117: 112 | N117: 15.8432534 | O117: -0.06386781413 | P117: -29.9680379 | Q117: -0.02880334167 | R117: 0.2833328373 | S117: -28.74646819 | T117: -0.02526410721 | U117: 0.3178450051
B118: 112.5 | C118: 5.788538336 | D118: 0.1058404664 | E118: -21.22122423 | F118: 0.06819919466 | G118: 0.7516065856 | H118: -19.89738475 | I118: 0.05075661728 | J118: 0.6994112224 | M118: 112.5 | N118: 16.1834723 | O118: -0.06308173587 | P118: -30.36633099 | Q118: -0.02880033671 | R118: 0.2833271069 | S118: -29.12866787 | T118: -0.02526196333 | U118: 0.3178375085
B119: 113 | C119: 5.645819074 | D119: 0.1063321607 | E119: -20.5787214 | F119: 0.06823529799 | G119: 0.7516323097 | H119: -19.29458861 | I119: 0.05078330616 | J119: 0.6994384538 | M119: 113 | N119: 16.5295894 | O119: -0.06293300686 | P119: -30.76462408 | Q119: -0.02879740954 | R119: 0.2833215235 | S119: -29.51086756 | T119: -0.02525987497 | U119: 0.3178302042
B120: 113.5 | C120: 5.505012716 | D120: 0.1059580369 | E120: -19.93621857 | F120: 0.06827373107 | G120: 0.7516596695 | H120: -18.69179248 | I120: 0.05081171792 | J120: 0.6994674199 | M120: 113.5 | N120: 16.8776194 | O120: -0.06298273159 | P120: -31.16291717 | Q120: -0.02879455717 | R120: 0.2833160814 | S120: -29.89306724 | T120: -0.02525784001 | U120: 0.317823085
B121: 114 | C121: 5.369459337 | D121: 0.1066471856 | E121: -19.29371573 | F121: 0.06831472694 | G121: 0.7516888264 | H121: -18.08899634 | I121: 0.05084202496 | J121: 0.6994982917 | M121: 114 | N121: 17.23057366 | O121: -0.06276259306 | P121: -31.56121026 | Q121: -0.02879177678 | R121: 0.2833107753 | S121: -30.27526692 | T121: -0.02525585642 | U121: 0.3178161438
B122: 114.5 | C122: 5.236819476 | D122: 0.1079893914 | E122: -18.6512129 | F122: 0.06835855076 | G122: 0.7517199633 | H122: -17.48620021 | I122: 0.05087442346 | J122: 0.6995312639 | M122: 114.5 | N122: 17.5862591 | O122: -0.06240558397 | P122: -31.95950335 | Q122: -0.02878906568 | R122: 0.2833056001 | S122: -30.65746661 | T122: -0.02525392228 | U122: 0.3178093741
B123: 115 | C123: 5.104179616 | D123: 0.1094048742 | E123: -18.00871007 | F123: 0.0684055056 | G123: 0.7517532891 | H123: -16.88340407 | I123: 0.05090913765 | J123: 0.6995665583 | M123: 115 | N123: 17.94194455 | O123: -0.06206247363 | P123: -32.35779644 | Q123: -0.0287864213 | R123: 0.2833005512 | S123: -31.03966629 | T123: -0.02525203576 | U123: 0.3178027696
B124: 115.5 | C124: 4.976814594 | D124: 0.1120784756 | E124: -17.49059068 | F124: 0.0684317153 | G124: 0.7517718752 | H124: -16.39742935 | I124: 0.05092851518 | J124: 0.6995862442 | M124: 115.5 | N124: 18.30355824 | O124: -0.06142847661 | P124: -32.75608953 | Q124: -0.02878384122 | R124: 0.283295624 | S124: -31.42186598 | T124: -0.02525019513 | U124: 0.3177963244
B125: 116 | C125: 4.851180161 | D125: 0.1153043387 | E125: -16.9724713 | F125: 0.06845952661 | G125: 0.7517915844 | H125: -15.91145462 | I125: 0.05094907717 | J125: 0.6996071213 | M125: 116 | N125: 18.6671169 | O125: -0.06072037157 | P125: -33.15438262 | Q125: -0.02878132311 | R125: 0.283290814 | S125: -31.80406566 | T125: -0.02524839873 | U125: 0.3177900327
B126: 116.5 | C126: 4.725545728 | D126: 0.1187220249 | E126: -16.45435192 | F126: 0.06848909098 | G126: 0.7518125219 | H126: -15.4254799 | I126: 0.05097093564 | J126: 0.6996293011 | M126: 116.5 | N126: 19.03067556 | O126: -0.06003831282 | P126: -33.55267571 | Q126: -0.02877886478 | R126: 0.2832861171 | S126: -32.18626534 | T126: -0.02524664498 | U126: 0.3177838891
B127: 117 | C127: 4.606835797 | D127: 0.1183701275 | E127: -15.93623253 | F127: 0.06852057954 | G127: 0.7518348059 | H127: -14.93950517 | I127: 0.05099421719 | J127: 0.6996529093 | M127: 117 | N127: 19.40115872 | O127: -0.05999212221 | P127: -33.95096879 | Q127: -0.02877646411 | R127: 0.2832815295 | S127: -32.56846503 | T127: -0.02524493239 | U127: 0.3177778884
B128: 117.5 | C128: 4.488312932 | D128: 0.1178901771 | E128: -15.41811315 | F128: 0.06855418646 | G128: 0.7518585709 | H128: -14.45353044 | I128: 0.05101906549 | J128: 0.6996780886 | M128: 117.5 | N128: 19.77182894 | O128: -0.05996384659 | P128: -34.34926188 | Q128: -0.02877411911 | R128: 0.2832770473 | S128: -32.95066471 | T128: -0.02524325953 | U128: 0.3177720258
B129: 118 | C129: 4.371020183 | D129: 0.1176991859 | E129: -14.89999376 | F129: 0.06859013296 | G129: 0.7518839695 | H129: -13.96755572 | I129: 0.05104564419 | J129: 0.6997050013 | M129: 118 | N129: 20.1436129 | O129: -0.05988463146 | P129: -34.74755497 | Q129: -0.02877182785 | R129: 0.283272667 | S129: -33.3328644 | T129: -0.02524162502 | U129: 0.3177662965
B130: 118.5 | C130: 4.260143552 | D130: 0.1191833124 | E130: -14.38187438 | F130: 0.06862867216 | G130: 0.7519111761 | H130: -13.48158099 | I130: 0.05107414056 | J130: 0.6997338327 | M130: 118.5 | N130: 20.52120593 | O130: -0.05954205309 | P130: -35.14584806 | Q130: -0.02876958851 | R130: 0.2832683851 | S130: -33.71506408 | T130: -0.02524002757 | U130: 0.317760696
B131: 119 | C131: 4.151962059 | D131: 0.1214790043 | E131: -13.86375499 | F131: 0.06867009504 | G131: 0.751940391 | H131: -12.99560627 | I131: 0.05110476992 | J131: 0.6997647956 | M131: 119 | N131: 20.90195376 | O131: -0.05906959995 | P131: -35.54414115 | Q131: -0.02876739936 | R131: 0.2832641983 | S131: -34.09726377 | T131: -0.02523846592 | U131: 0.31775522
B132: 119.5 | C132: 4.047309334 | D132: 0.1248885046 | E132: -13.34563561 | F132: 0.06871473786 | G132: 0.7519718449 | H132: -12.50963154 | I132: 0.05113778105 | J132: 0.6997981354 | M132: 119.5 | N132: 21.2868322 | O132: -0.05843089465 | P132: -35.94243424 | Q132: -0.0287652587 | R132: 0.2832601035 | S132: -34.47946345 | T132: -0.02523693889 | U132: 0.3177498644
B133: 120 | C133: 3.942656609 | D133: 0.1285014896 | E133: -12.82751622 | F133: 0.06876299122 | G133: 0.7520058057 | H133: -12.02365681 | I133: 0.05117346302 | J133: 0.6998341367 | M133: 120 | N133: 21.67171063 | O133: -0.05781405351 | P133: -36.34072733 | Q133: -0.02876316497 | R133: 0.2832560977 | S133: -34.86166313 | T133: -0.02523544533 | U133: 0.3177446253
B134: 120.5 | C134: 3.838003883 | D134: 0.1323367358 | E134: -12.43068786 | F134: 0.06878809675 | G134: 0.7520234597 | H134: -11.6515393 | I134: 0.05119202825 | J134: 0.6998528534 | M134: 120.5 | N134: 22.05658907 | O134: -0.05721797274 | P134: -36.48634582 | Q134: -0.02876139657 | R134: 0.2832527138 | S134: -35.00145536 | T134: -0.02523418387 | U134: 0.3177401996
B135: 121 | C135: 3.739212851 | D135: 0.1321395382 | E135: -12.0338595 | F135: 0.06881485933 | G135: 0.7520422675 | H135: -11.27942179 | I135: 0.05121181916 | J135: 0.6998727946 | M135: 121 | N135: 22.44732919 | O135: -0.05709222717 | P135: -36.63196432 | Q135: -0.02875964222 | R135: 0.2832493563 | S135: -35.14124758 | T135: -0.02523293243 | U135: 0.3177358085
B136: 121.5 | C136: 3.640907611 | D136: 0.1315699933 | E136: -11.63703113 | F136: 0.06884344862 | G136: 0.752062346 | H136: -10.90730427 | I136: 0.05123296128 | J136: 0.6998940847 | M136: 121.5 | N136: 22.83855511 | O136: -0.05700744055 | P136: -36.77758281 | Q136: -0.02875790175 | R136: 0.2832460248 | S136: -35.2810398 | T136: -0.02523169091 | U136: 0.3177314515
B137: 122 | C137: 3.54260237 | D137: 0.1309694605 | E137: -11.24020277 | F137: 0.06887405827 | G137: 0.7520838285 | H137: -10.53518676 | I137: 0.05125559788 | J137: 0.6999168653 | M137: 122 | N137: 23.22978103 | O137: -0.05692549533 | P137: -36.9232013 | Q137: -0.02875617501 | R137: 0.2832427191 | S137: -35.42083202 | T137: -0.02523045919 | U137: 0.3177271282
B138: 122.5 | C138: 3.446838219 | D138: 0.1311692646 | E138: -10.84337441 | F138: 0.06890691027 | G138: 0.7521068675 | H138: -10.16306925 | I138: 0.05127989324 | J138: 0.6999412986 | M138: 122.5 | N138: 23.623229 | O138: -0.0567575275 | P138: -37.06881979 | Q138: -0.02875446183 | R138: 0.2832394389 | S138: -35.56062424 | T138: -0.02522923714 | U138: 0.3177228383
B139: 123 | C139: 3.360323851 | D139: 0.134503452 | E139: -10.44654604 | F139: 0.06894226039 | G139: 0.7521316387 | H139: -9.790951732 | I139: 0.05130603659 | J139: 0.6999675712 | M139: 123 | N139: 24.02641058 | O139: -0.05621265795 | P139: -37.21443829 | Q139: -0.02875276206 | R139: 0.2832361838 | S139: -35.70041647 | T139: -0.02522802466 | U139: 0.3177185814
B140: 123.5 | C140: 3.274457909 | D140: 0.1382605709 | E140: -10.04971768 | F140: 0.06898040485 | G140: 0.7521583449 | H140: -9.418834218 | I140: 0.05133424714 | J140: 0.6999958989 | M140: 123.5 | N140: 24.4303827 | O140: -0.05565461628 | P140: -37.36005678 | Q140: -0.02875107552 | R140: 0.2832329536 | S140: -35.84020869 | T140: -0.02522682164 | U140: 0.3177143571
B141: 124 | C141: 3.188591967 | D141: 0.1422470671 | E141: -9.652889318 | F141: 0.06902168859 | G141: 0.7521872221 | H141: -9.046716705 | I141: 0.05136478016 | J141: 0.7000265327 | M141: 124 | N141: 24.83435482 | O141: -0.05511410115 | P141: -37.50567527 | Q141: -0.02874940208 | R141: 0.283229748 | S141: -35.98000091 | T141: -0.02522562797 | U141: 0.317710165
B142: 124.5 | C142: 3.102726025 | D142: 0.1464846077 | E142: -9.256060955 | F142: 0.0690665158 | G142: 0.7522185463 | H142: -8.674599191 | I142: 0.05139793476 | J142: 0.7000597662 | M142: 124.5 | N142: 25.23832694 | O142: -0.05459029963 | P142: -37.65129376 | Q142: -0.02874774157 | R142: 0.2832265668 | S142: -36.11979313 | T142: -0.02522444353 | U142: 0.3177060047
B143: 125 | C143: 3.020165494 | D143: 0.1479159004 | E143: -8.859232591 | F143: 0.06911536315 | G143: 0.7522526423 | H143: -8.302481678 | I143: 0.05143406372 | J143: 0.7000959448 | M143: 125 | N143: 25.64560447 | O143: -0.05430644939 | P143: -37.79691226 | Q143: -0.02874609386 | R143: 0.2832234096 | S143: -36.25958535 | T143: -0.02522326822 | U143: 0.317701876
B144: 125.5 | C144: 2.939853635 | D144: 0.1472830351 | E144: -8.567569698 | F144: 0.06913955278 | G144: 0.7522695125 | H144: -8.029043822 | I144: 0.05145195549 | J144: 0.7001138472 | M144: 125.5 | N144: 26.05513067 | O144: -0.05418133637 | P144: -37.94253075 | Q144: -0.02874445878 | R144: 0.2832202762 | S144: -36.39937758 | T144: -0.02522210193 | U144: 0.3176977784
B145: 126 | C145: 2.859541777 | D145: 0.1466153782 | E145: -8.275906805 | F145: 0.06916544862 | G145: 0.752287562 | H145: -7.755605966 | I145: 0.05147110955 | J145: 0.7001330024 | M145: 126 | N145: 26.46465687 | O145: -0.05406006388 | P145: -38.08814924 | Q145: -0.0287428362 | R145: 0.2832171662 | S145: -36.5391698 | T145: -0.02522094457 | U145: 0.3176937115
B146: 126.5 | C146: 2.779635479 | D146: 0.1460771976 | E146: -7.984243912 | F146: 0.0691932378 | G146: 0.7523069191 | H146: -7.48216811 | I146: 0.05149166437 | J146: 0.7001535467 | M146: 126.5 | N146: 26.87469806 | O146: -0.05392432867 | P146: -38.23376773 | Q146: -0.02874122598 | R146: 0.2832140796 | S146: -36.67896202 | T146: -0.02521979603 | U146: 0.3176896752
B147: 127 | C147: 2.705435978 | D147: 0.1479291299 | E147: -7.692581019 | F147: 0.06922313584 | G147: 0.752327731 | H147: -7.208730254 | I147: 0.05151377943 | J147: 0.7001756368 | M147: 127 | N147: 27.29135474 | O147: -0.05356321731 | P147: -38.37938622 | Q147: -0.02873962797 | R147: 0.2832110159 | S147: -36.81875424 | T147: -0.0252186562 | U147: 0.3176856689
B148: 127.5 | C148: 2.636068095 | D148: 0.1520035154 | E148: -7.400918126 | F148: 0.06925539225 | G148: 0.7523501684 | H148: -6.935292398 | I148: 0.0515376394 | J148: 0.700199454 | M148: 127.5 | N148: 27.71209205 | O148: -0.05307326699 | P148: -38.52500472 | Q148: -0.02873804204 | R148: 0.2832079749 | S148: -36.95854646 | T148: -0.025217525 | U148: 0.3176816924
B149: 128 | C149: 2.566700213 | D149: 0.1563295578 | E149: -7.109255232 | F149: 0.06929029755 | G149: 0.7523744292 | H149: -6.661854543 | I149: 0.05156345927 | J149: 0.7002252092 | M149: 128 | N149: 28.13282936 | O149: -0.05259748647 | P149: -38.67062321 | Q149: -0.02873646804 | R149: 0.2832049564 | S149: -37.09833869 | T149: -0.02521640231 | U149: 0.3176777453
B150: 128.5 | C150: 2.49733233 | D150: 0.1609313159 | E150: -6.817592339 | F150: 0.069328192 | G150: 0.7524007452 | H150: -6.388416687 | I150: 0.05159149087 | J150: 0.7002531488 | M150: 128.5 | N150: 28.55356667 | O150: -0.05213526982 | P150: -38.8162417 | Q150: -0.02873490585 | R150: 0.2832019601 | S150: -37.23813091 | T150: -0.02521528806 | U150: 0.3176738273
B151: 129 | C151: 2.427964448 | D151: 0.1658360158 | E151: -6.525929446 | F151: 0.06936947672 | G151: 0.7524293892 | H151: -6.114978831 | I151: 0.05162203109 | J151: 0.7002835632 | M151: 129 | N151: 28.97430398 | O151: -0.05168604516 | P151: -38.96186019 | Q151: -0.02873335533 | R151: 0.2831989859 | S151: -37.37792313 | T151: -0.02521418213 | U151: 0.3176699381
B152: 129.5 | C152: 2.363261082 | D152: 0.1652941412 | E152: -6.234266553 | F152: 0.06941462801 | G152: 0.7524606842 | H152: -5.841540975 | I152: 0.05165543247 | J152: 0.7003167963 | M152: 129.5 | N152: 29.39970581 | O152: -0.05152710257 | P152: -39.10747869 | Q152: -0.02873181636 | R152: 0.2831960333 | S152: -37.51771535 | T152: -0.02521308445 | U152: 0.3176660774
B153: 130 | C153: 2.298657371 | D153: 0.1645963765 | E153: -5.94260366 | F153: 0.06946421574 | G153: 0.7524950163 | H153: -5.568103119 | I153: 0.05169211684 | J153: 0.7003532591 | M153: 130 | N153: 29.82520729 | O153: -0.05137849381 | P153: -39.25309718 | Q153: -0.02873028879 | R153: 0.2831931023 | S153: -37.65750757 | T153: -0.02521199491 | U153: 0.3176622449
B154: 130.5 | C154: 2.234236203 | D154: 0.1639542636 | E154: -5.737306684 | F154: 0.06948705339 | G154: 0.7525108146 | H154: -5.375678 | I154: 0.05170901221 | J154: 0.7003700395 | M154: 130.5 | N154: 30.2509502 | O154: -0.05122644923 | P154: -39.39871567 | Q154: -0.02872877252 | R154: 0.2831901925 | S154: -37.7972998 | T154: -0.02521091343 | U154: 0.3176584402
B155: 131 | C155: 2.173506429 | D155: 0.1652538131 | E155: -5.532009709 | F155: 0.06951158717 | G155: 0.7525277769 | H155: -5.18325288 | I155: 0.05172716265 | J155: 0.7003880573 | M155: 131 | N155: 30.68157513 | O155: -0.05092756247 | P155: -39.54433416 | Q155: -0.0287272674 | R155: 0.2831873038 | S155: -37.93709202 | T155: -0.02520983992 | U155: 0.317654663
B156: 131.5 | C156: 2.112776655 | D156: 0.1666312319 | E156: -5.326712733 | F156: 0.06953801332 | G156: 0.7525460367 | H156: -4.990827761 | I156: 0.05174671339 | J156: 0.7004074547 | M156: 131.5 | N156: 31.11220006 | O156: -0.05063676888 | P156: -39.68995266 | Q156: -0.02872577333 | R156: 0.2831844359 | S156: -38.07688424 | T156: -0.02520877428 | U156: 0.3176509131
B157: 132 | C157: 2.056321924 | D157: 0.1705272325 | E157: -5.121415757 | F157: 0.06956655958 | G157: 0.7525657488 | H157: -4.798402642 | I157: 0.051767833 | J157: 0.7004283963 | M157: 132 | N157: 31.54631218 | O157: -0.05024875691 | P157: -39.83557115 | Q157: -0.02872429018 | R157: 0.2831815886 | S157: -38.21667646 | T157: -0.02520771644 | U157: 0.3176471902
B158: 132.5 | C158: 2.001163299 | D158: 0.175432863 | E158: -4.916118782 | F158: 0.06959749173 | G158: 0.7525870936 | H158: -4.605977522 | I158: 0.0517907182 | J158: 0.7004510744 | M158: 132.5 | N158: 31.98148155 | O158: -0.04983956399 | P158: -39.98118964 | Q158: -0.02872281782 | R158: 0.2831787616 | S158: -38.35646868 | T158: -0.02520666631 | U158: 0.3176434939
B159: 133 | C159: 1.946004675 | D159: 0.1806614691 | E159: -4.710821806 | F159: 0.06963112196 | G159: 0.7526102828 | H159: -4.413552403 | I159: 0.05181560006 | J159: 0.7004757141 | M159: 133 | N159: 32.41665092 | O159: -0.04944101862 | P159: -40.12680813 | Q159: -0.02872135615 | R159: 0.2831759548 | S159: -38.49626091 | T159: -0.02520562381 | U159: 0.317639824
B160: 133.5 | C160: 1.891107961 | D160: 0.1858258066 | E160: -4.505524831 | F160: 0.06966781936 | G160: 0.7526355663 | H160: -4.221127284 | I160: 0.05184275181 | J160: 0.7005025815 | M160: 133.5 | N160: 32.85208219 | O160: -0.04906675738 | P160: -40.27242662 | Q160: -0.02871990504 | R160: 0.2831731679 | S160: -38.63605313 | T160: -0.02520458884 | U160: 0.3176361802
B161: 134 | C161: 1.839955373 | D161: 0.1851408006 | E161: -4.300227855 | F161: 0.06970802359 | G161: 0.7526632411 | H161: -4.028702164 | I161: 0.05187249889 | J161: 0.7005319931 | M161: 134 | N161: 33.2912576 | O161: -0.04890030796 | P161: -40.41804512 | Q161: -0.02871846438 | R161: 0.2831704008 | S161: -38.77584535 | T161: -0.02520356134 | U161: 0.3176325623
B162: 134.5 | C162: 1.788802784 | D162: 0.1844174778 | E162: -4.09493088 | F162: 0.06975226254 | G162: 0.7526936634 | H162: -3.836277045 | I162: 0.0519052321 | J162: 0.7005643281 | M162: 134.5 | N162: 33.730433 | O162: -0.04873813691 | P162: -40.56366361 | Q162: -0.02871703406 | R162: 0.2831676532 | S162: -38.91563757 | T162: -0.02520254121 | U162: 0.3176289699
B163: 135 | C163: 1.740037174 | D163: 0.1852784934 | E163: -3.889633904 | F163: 0.06980117566 | G163: 0.7527272636 | H163: -3.643851926 | I163: 0.05194142485 | J163: 0.7006000452 | M163: 135 | N163: 34.1728964 | O163: -0.04848853013 | P163: -40.7092821 | Q163: -0.02871561398 | R163: 0.2831649248 | S163: -39.05542979 | T163: -0.02520152839 | U163: 0.3176254028
B164: 135.5 | C164: 1.692063001 | D164: 0.1867456064 | E164: -3.749346683 | F164: 0.06982304938 | G164: 0.7527422771 | H164: -3.512388101 | I164: 0.05195761042 | J164: 0.7006160061 | M164: 135.5 | N164: 34.61644999 | O164: -0.04821520365 | P164: -40.85490059 | Q164: -0.02871420401 | R164: 0.2831622156 | S164: -39.19522202 | T164: -0.02520052279 | U164: 0.3176218607
B165: 136 | C165: 1.644088828 | D165: 0.1883023008 | E165: -3.609059461 | F165: 0.0698466246 | G165: 0.75275845 | H165: -3.380924277 | I165: 0.05197505528 | J165: 0.7006332005 | M165: 136 | N165: 35.06000357 | O165: -0.04794864187 | P165: -41.00051909 | Q165: -0.02871280405 | R165: 0.2831595253 | S165: -39.33501424 | T165: -0.02519952433 | U165: 0.3176183433
B166: 136.5 | C166: 1.596114654 | D166: 0.1899570397 | E166: -3.46877224 | F166: 0.06987210788 | G166: 0.7527759218 | H166: -3.249460453 | I166: 0.05199391231 | J166: 0.7006517771 | M166: 136.5 | N166: 35.50355716 | O166: -0.04768859672 | P166: -41.14613758 | Q166: -0.028711414 | R166: 0.2831568537 | S166: -39.47480646 | T166: -0.02519853294 | U166: 0.3176148504
B167: 137 | C167: 1.552700432 | D167: 0.1952295214 | E167: -3.328485018 | F167: 0.06989974065 | G167: 0.7527948557 | H167: -3.117996628 | I167: 0.05201436025 | J167: 0.7006719097 | M167: 137 | N167: 35.95070323 | O167: -0.04733963458 | P167: -41.29175607 | Q167: -0.02871003374 | R167: 0.2831542006 | S167: -39.61459868 | T167: -0.02519754855 | U167: 0.3176113818
B168: 137.5 | C168: 1.509543857 | D168: 0.2010613943 | E168: -3.188197797 | F168: 0.06992980684 | G168: 0.7528154432 | H168: -2.986532804 | I168: 0.05203660928 | J168: 0.7006938021 | M168: 137.5 | N168: 36.39805228 | O168: -0.04699368522 | P168: -41.43737456 | Q168: -0.02870866319 | R168: 0.2831515659 | S168: -39.7543909 | T168: -0.02519657108 | U168: 0.3176079372
B169: 138 | C169: 1.466387283 | D169: 0.2072988938 | E169: -3.047910576 | F169: 0.06996264269 | G169: 0.7528379108 | H169: -2.85506898 | I169: 0.05206090833 | J169: 0.7007176958 | M169: 138 | N169: 36.84540134 | O169: -0.0466558941 | P169: -41.58299306 | Q169: -0.02870730223 | R169: 0.2831489492 | S169: -39.89418313 | T169: -0.02519560046 | U169: 0.3176045163
B170: 138.5 | C170: 1.426016758 | D170: 0.2077518496 | E170: -2.907623354 | F170: 0.06999864939 | G170: 0.7528625284 | H170: -2.723605155 | I170: 0.05208755443 | J170: 0.7007438783 | M170: 138.5 | N170: 37.29553644 | O170: -0.04645853925 | P170: -41.72861155 | Q170: -0.02870595076 | R170: 0.2831463505 | S170: -40.03397535 | T170: -0.02519463661 | U170: 0.3176011189
B171: 139 | C171: 1.386650763 | D171: 0.2074776974 | E171: -2.767336133 | F171: 0.07003830954 | G171: 0.7528896201 | H171: -2.592141331 | I171: 0.05211690486 | J171: 0.700772695 | M171: 139 | N171: 37.74688844 | O171: -0.0462723674 | P171: -41.87423004 | Q171: -0.02870460869 | R171: 0.2831437696 | S171: -40.17376757 | T171: -0.02519367947 | U171: 0.3175977448
B172: 139.5 | C172: 1.349352401 | D172: 0.2090402909 | E172: -2.627048911 | F172: 0.07008220891 | G172: 0.7529195786 | H172: -2.460677507 | I172: 0.05214939335 | J172: 0.7008045645 | M172: 139.5 | N172: 38.20120684 | O172: -0.04601644624 | P172: -42.01984853 | Q172: -0.02870327592 | R172: 0.2831412063 | S172: -40.31355979 | T172: -0.02519272897 | U172: 0.3175943936
B173: 140 | C173: 1.312054039 | D173: 0.2106961273 | E173: -2.48676169 | F173: 0.07013106556 | G173: 0.7529528843 | H173: -2.329213682 | I173: 0.05218555159 | J173: 0.700839999 | M173: 140 | N173: 38.65552524 | O173: -0.04576640819 | P173: -42.16546702 | Q173: -0.02870195235 | R173: 0.2831386603 | S173: -40.45335201 | T173: -0.02519178503 | U173: 0.3175910653
B174: 140.5 | C174: 1.274755678 | D174: 0.2124538092 | E174: -2.393611132 | F174: 0.07015232056 | G174: 0.7529673621 | H174: -2.241939101 | I174: 0.0522012825 | J174: 0.7008554037 | M174: 140.5 | N174: 39.10984364 | O174: -0.04552205268 | P174: -42.31605798 | Q174: -0.02870195235 | R174: 0.2831386603 | S174: -40.59782827 | T174: -0.02519178503 | U174: 0.3175910653
B175: 141 | C175: 1.237457316 | D175: 0.2143230311 | E175: -2.300460574 | F175: 0.07017529782 | G175: 0.7529830051 | H175: -2.154664519 | I175: 0.0522182883 | J175: 0.700872049 | M175: 141 | N175: 39.56416205 | O175: -0.04528318819 | P175: -42.46664893 | Q175: -0.02870195235 | R175: 0.2831386603 | S175: -40.74230453 | T175: -0.02519178503 | U175: 0.3175910653
B176: 141.5 | C176: 1.200158954 | D176: 0.2163147582 | E176: -2.207310016 | F176: 0.07020021553 | G176: 0.7529999597 | H176: -2.067389938 | I176: 0.05223673052 | J176: 0.7008900911 | M176: 141.5 | N176: 40.01848045 | O176: -0.04504963167 | P176: -42.61723989 | Q176: -0.02870195235 | R176: 0.2831386603 | S176: -40.88678079 | T176: -0.02519178503 | U176: 0.3175910653
B177: 142 | C177: 1.165961288 | D177: 0.2216903402 | E177: -2.114159458 | F177: 0.07022733032 | G177: 0.7530183982 | H177: -1.980115356 | I177: 0.05225679917 | J177: 0.7009097136 | M177: 142 | N177: 40.47515821 | O177: -0.04476552606 | P177: -42.76783084 | Q177: -0.02870195235 | R177: 0.2831386603 | S177: -41.03125704 | T177: -0.02519178503 | U177: 0.3175910653
B178: 142.5 | C178: 1.132746638 | D178: 0.2285090566 | E178: -2.0210089 | F178: 0.07025694618 | G178: 0.7530385243 | H178: -1.892840775 | I178: 0.05227871933 | J178: 0.7009311336 | M178: 142.5 | N178: 40.93258396 | O178: -0.04447013546 | P178: -42.91842179 | Q178: -0.02870195235 | R178: 0.2831386603 | S178: -41.1757333 | T178: -0.02519178503 | U178: 0.3175910653
B179: 143 | C179: 1.100341761 | D179: 0.2333658933 | E179: -1.927858342 | F179: 0.07028942589 | G179: 0.7530605807 | H179: -1.805566193 | I179: 0.05230275963 | J179: 0.7009546099 | M179: 143 | N179: 41.39081948 | O179: -0.04421601682 | P179: -43.06901275 | Q179: -0.02870195235 | R179: 0.2831386603 | S179: -41.32020956 | T179: -0.02519178503 | U179: 0.3175910653
B180: 143.5 | C180: 1.070518651 | D180: 0.2335787806 | E180: -1.834707784 | F180: 0.07032520596 | G180: 0.7530848593 | H180: -1.718291612 | I180: 0.05232924329 | J180: 0.7009804537 | M180: 143.5 | N180: 41.85199445 | O180: -0.04402192136 | P180: -43.2196037 | Q180: -0.02870195235 | R180: 0.2831386603 | S180: -41.46468581 | T180: -0.02519178503 | U180: 0.3175910653
B181: 144 | C181: 1.041986926 | D181: 0.23533496 | E181: -1.741557226 | F181: 0.07036481635 | G181: 0.7531117135 | H181: -1.63101703 | I181: 0.05235856274 | J181: 0.701009042 | M181: 144 | N181: 42.31509909 | O181: -0.04378837475 | P181: -43.37019465 | Q181: -0.02870195235 | R181: 0.2831386603 | S181: -41.60916207 | T181: -0.02519178503 | U181: 0.3175910653
B182: 144.5 | C182: 1.013455202 | D182: 0.2371954613 | E182: -1.648406668 | F182: 0.07040890692 | G182: 0.7531415762 | H182: -1.543742449 | I182: 0.05239119924 | J182: 0.7010408366 | M182: 144.5 | N182: 42.77820374 | O182: -0.0435597743 | P182: -43.52078561 | Q182: -0.02870195235 | R182: 0.2831386603 | S182: -41.75363833 | T182: -0.02519178503 | U182: 0.3175910653
B183: 145 | C183: 0.9849234768 | D183: 0.2391698647 | E183: -1.55525611 | F183: 0.07045828332 | G183: 0.753174983 | H183: -1.456467867 | I183: 0.05242774942 | J183: 0.7010764088 | M183: 145 | N183: 43.24130838 | O183: -0.04333596453 | P183: -43.67137656 | Q183: -0.02870195235 | R183: 0.2831386603 | S183: -41.89811459 | T183: -0.02519178503 | U183: 0.3175910653

Sheet Eurib12M
A1: lambda | B1: 0.9 | C1: row_max_wP | D1: =MATCH(MAX($F$7:$F$45),$F$5:$F$45,0)+4 -> 31 | E1: max_P | F1: =MAX($C$7:$C$45) -> 5.495
A2: n | B2: =COUNT($D$7:$D$45) -> 39 | C2: row_min_wP | D2: =MATCH(MIN($F$7:$F$45),$F$5:$F$45,0)+4 -> 7 | E2: min_P | F2: =MIN($C$7:$C$45) -> -0.186
A4: No | B4: Date | C4: Prix Ask | D4: T | E4: wi | F4: w_Prix
A5: 1 | B5: 2018-06-05 | C5: -0.182 | D5: =($B$5-B5)/365 -> 0 | E5: =$B$1^($A5-1)*(1-$B$1)/(1-$B$1^$B$2) -> 0.1016697429 | F5: =$E5*$C5 -> -0.0185038932
A6: 2 | B6: 2018-03-30 | C6: -0.19 | D6: 0.1835616438 | E6: 0.09150276857 | F6: -0.01738552603
A7: 3 | B7: 2017-12-29 | C7: -0.186 | D7: 0.4328767123 | E7: 0.08235249171 | F7: -0.01531756346
A8: 4 | B8: 2017-09-29 | C8: -0.172 | D8: 0.6821917808 | E8: 0.07411724254 | F8: -0.01274816572
A9: 5 | B9: 2017-06-30 | C9: -0.156 | D9: 0.9315068493 | E9: 0.06670551829 | F9: -0.01040606085
A10: 6 | B10: 2017-03-31 | C10: -0.109 | D10: 1.180821918 | E10: 0.06003496646 | F10: -0.006543811344
A11: 7 | B11: 2016-12-30 | C11: -0.082 | D11: 1.430136986 | E11: 0.05403146981 | F11: -0.004430580525
A12: 8 | B12: 2016-09-30 | C12: -0.064 | D12: 1.679452055 | E12: 0.04862832283 | F12: -0.003112212661
A13: 9 | B13: 2016-06-30 | C13: -0.051 | D13: 1.931506849 | E13: 0.04376549055 | F13: -0.002232040018
A14: 10 | B14: 2016-03-31 | C14: -0.005 | D14: 2.180821918 | E14: 0.03938894149 | F14: -0.0001969447075
A15: 11 | B15: 2015-12-31 | C15: 0.06 | D15: 2.430136986 | E15: 0.03545004734 | F15: 0.002127002841
A16: 12 | B16: 2015-09-30 | C16: 0.142 | D16: 2.682191781 | E16: 0.03190504261 | F16: 0.00453051605
A17: 13 | B17: 2015-06-30 | C17: 0.164 | D17: 2.934246575 | E17: 0.02871453835 | F17: 0.004709184289
A18: 14 | B18: 2015-03-31 | C18: 0.198 | D18: 3.183561644 | E18: 0.02584308451 | F18: 0.005116930734
A19: 15 | B19: 2014-12-31 | C19: 0.325 | D19: 3.430136986 | E19: 0.02325877606 | F19: 0.00755910222
A20: 16 | B20: 2014-09-30 | C20: 0.338 | D20: 3.682191781 | E20: 0.02093289846 | F20: 0.007075319678
A21: 17 | B21: 2014-06-30 | C21: 0.488 | D21: 3.934246575 | E21: 0.01883960861 | F21: 0.009193729002
A22: 18 | B22: 2014-03-31 | C22: 0.59 | D22: 4.183561644 | E22: 0.01695564775 | F22: 0.01000383217
A23: 19 | B23: 2013-12-31 | C23: 0.556 | D23: 4.430136986 | E23: 0.01526008297 | F23: 0.008484606134
A24: 20 | B24: 2013-09-30 | C24: 0.539 | D24: 4.682191781 | E24: 0.01373407468 | F24: 0.007402666251
A25: 21 | B25: 2013-06-28 | C25: 0.527 | D25: 4.939726027 | E25: 0.01236066721 | F25: 0.006514071619
A26: 22 | B26: 2013-03-29 | C26: 0.547 | D26: 5.189041096 | E26: 0.01112460049 | F26: 0.006085156467
A27: 23 | B27: 2012-12-31 | C27: 0.542 | D27: 5.430136986 | E27: 0.01001214044 | F27: 0.005426580118
A28: 24 | B28: 2012-09-28 | C28: 0.684 | D28: 5.687671233 | E28: 0.009010926395 | F28: 0.006163473655
A29: 25 | B29: 2012-06-29 | C29: 1.213 | D29: 5.936986301 | E29: 0.008109833756 | F29: 0.009837228346
A30: 26 | B30: 2012-03-30 | C30: 1.416 | D30: 6.18630137 | E30: 0.00729885038 | F30: 0.01033517214
A31: 27 | B31: 2011-12-30 | C31: 1.947 | D31: 6.435616438 | E31: 0.006568965342 | F31: 0.01278977552
A32: 28 | B32: 2011-09-30 | C32: 2.084 | D32: 6.684931507 | E32: 0.005912068808 | F32: 0.0123207514
A33: 29 | B33: 2011-06-30 | C33: 2.162 | D33: 6.936986301 | E33: 0.005320861927 | F33: 0.01150370349
A34: 30 | B34: 2011-03-31 | C34: 1.996 | D34: 7.18630137 | E34: 0.004788775735 | F34: 0.009558396366
A35: 31 | B35: 2010-12-31 | C35: 1.507 | D35: 7.432876712 | E35: 0.004309898161 | F35: 0.006495016529
A36: 32 | B36: 2010-09-30 | C36: 1.433 | D36: 7.684931507 | E36: 0.003878908345 | F36: 0.005558475658
A37: 33 | B37: 2010-06-30 | C37: 1.306 | D37: 7.936986301 | E37: 0.00349101751 | F37: 0.004559268869
A38: 34 | B38: 2010-03-31 | C38: 1.212 | D38: 8.18630137 | E38: 0.003141915759 | F38: 0.0038080019
A39: 35 | B39: 2009-12-31 | C39: 1.248 | D39: 8.432876712 | E39: 0.002827724183 | F39: 0.003528999781
A40: 36 | B40: 2009-09-30 | C40: 1.236 | D40: 8.684931507 | E40: 0.002544951765 | F40: 0.003145560382
A41: 37 | B41: 2009-06-30 | C41: 1.504 | D41: 8.936986301 | E41: 0.002290456589 | F41: 0.003444846709
A42: 38 | B42: 2009-03-31 | C42: 1.812 | D42: 9.18630137 | E42: 0.00206141093 | F42: 0.003735276605
A43: 39 | B43: 2008-12-31 | C43: 3.049 | D43: 9.432876712 | E43: 0.001855269837 | F43: 0.005656717732
A44: 40 | B44: 2008-09-30 | C44: 5.495 | D44: 9.684931507 | E44: 0.001669742853 | F44: 0.009175236978
A45: 41 | B45: 2008-06-30 | C45: 5.39 | D45: 9.936986301 | E45: 0.001502768568 | F45: 0.00809992258

Sheet ImpVolCAC40
A1: max | B1: =MAX($D$5:$D$680) -> 0.14396 | C1: rho | D1: =($B$1-$B$2)/(2*$D$680) -> 0.0785070321
A2: min | B2: =MIN($D$5:$D$680) -> 0.12219
A4: No | B4: Date | C4: Dernier | D4: Prix
A5: 1 | B5: 2018-06-05 | C5: 03:04:00 | D5: 0.13509
A6: 2 | B6: 2018-06-05 | C6: 03:05:00 | D6: 0.13587
A7: 3 | B7: 2018-06-05 | C7: 03:06:00 | D7: 0.13557
A8: 4 | B8: 2018-06-05 | C8: 03:07:00 | D8: 0.13525
A9: 5 | B9: 2018-06-05 | C9: 03:08:00 | D9: 0.13463
A10: 6 | B10: 2018-06-05 | C10: 03:09:00 | D10: 0.13428
A11: 7 | B11: 2018-06-05 | C11: 03:10:00 | D11: 0.13431
A12: 8 | B12: 2018-06-05 | C12: 03:11:00 | D12: 0.13447
A13: 9 | B13: 2018-06-05 | C13: 03:12:00 | D13: 0.13434
A14: 10 | B14: 2018-06-05 | C14: 03:13:00 | D14: 0.13323
A15: 11 | B15: 2018-06-05 | C15: 03:14:00 | D15: 0.13347
A16: 12 | B16: 2018-06-05 | C16: 03:15:00 | D16: 0.13342
A17: 13 | B17: 2018-06-05 | C17: 03:16:00 | D17: 0.13352
A18: 14 | B18: 2018-06-05 | C18: 03:17:00 | D18: 0.13337
A19: 15 | B19: 2018-06-05 | C19: 03:18:00 | D19: 0.13309
A20: 16 | B20: 2018-06-05 | C20: 03:19:00 | D20: 0.133
A21: 17 | B21: 2018-06-05 | C21: 03:20:00 | D21: 0.13326
A22: 18 | B22: 2018-06-05 | C22: 03:21:00 | D22: 0.13368
A23: 19 | B23: 2018-06-05 | C23: 03:22:00 | D23: 0.13333
A24: 20 | B24: 2018-06-05 | C24: 03:23:00 | D24: 0.13356
A25: 21 | B25: 2018-06-05 | C25: 03:24:00 | D25: 0.13234
A26: 22 | B26: 2018-06-05 | C26: 03:25:00 | D26: 0.13223
A27: 23 | B27: 2018-06-05 | C27: 03:26:00 | D27: 0.13211
A28: 24 | B28: 2018-06-05 | C28: 03:27:00 | D28: 0.12874
A29: 25 | B29: 2018-06-05 | C29: 03:28:00 | D29: 0.13099
A30: 26 | B30: 2018-06-05 | C30: 03:29:00 | D30: 0.13047
A31: 27 | B31: 2018-06-05 | C31: 03:30:00 | D31: 0.12995
A32: 28 | B32: 2018-06-05 | C32: 03:31:00 | D32: 0.12987
A33: 29 | B33: 2018-06-05 | C33: 03:32:00 | D33: 0.12982
A34: 30 | B34: 2018-06-05 | C34: 03:33:00 | D34: 0.12922
A35: 31 | B35: 2018-06-05 | C35: 03:34:00 | D35: 0.12904
A36: 32 | B36: 2018-06-05 | C36: 03:35:00 | D36: 0.12929
A37: 33 | B37: 2018-06-05 | C37: 03:36:00 | D37: 0.12862
A38: 34 | B38: 2018-06-05 | C38: 03:37:00 | D38: 0.12922
A39: 35 | B39: 2018-06-05 | C39: 03:38:00 | D39: 0.12911
A40: 36 | B40: 2018-06-05 | C40: 03:39:00 | D40: 0.12908
A41: 37 | B41: 2018-06-05 | C41: 03:40:00 | D41: 0.12968
A42: 38 | B42: 2018-06-05 | C42: 03:41:00 | D42: 0.12891
A43: 39 | B43: 2018-06-05 | C43: 03:42:00 | D43: 0.12856
A44: 40 | B44: 2018-06-05 | C44: 03:43:00 | D44: 0.12887
A45: 41 | B45: 2018-06-05 | C45: 03:44:00 | D45: 0.128
A46: 42 | B46: 2018-06-05 | C46: 03:45:00 | D46: 0.12798
A47: 43 | B47: 2018-06-05 | C47: 03:46:00 | D47: 0.12879
A48: 44 | B48: 2018-06-05 | C48: 03:47:00 | D48: 0.12889
A49: 45 | B49: 2018-06-05 | C49: 03:48:00 | D49: 0.1268
A50: 46 | B50: 2018-06-05 | C50: 03:49:00 | D50: 0.12891
A51: 47 | B51: 2018-06-05 | C51: 03:50:00 | D51: 0.12875
A52: 48 | B52: 2018-06-05 | C52: 03:51:00 | D52: 0.12829
A53: 49 | B53: 2018-06-05 | C53: 03:52:00 | D53: 0.12853
A54: 50 | B54: 2018-06-05 | C54: 03:53:00 | D54: 0.1286
A55: 51 | B55: 2018-06-05 | C55: 03:54:00 | D55: 0.12636
A56: 52 | B56: 2018-06-05 | C56: 03:55:00 | D56: 0.12897
A57: 53 | B57: 2018-06-05 | C57: 03:56:00 | D57: 0.12848
A58: 54 | B58: 2018-06-05 | C58: 03:57:00 | D58: 0.12864
A59: 55 | B59: 2018-06-05 | C59: 03:58:00 | D59: 0.12873
A60: 56 | B60: 2018-06-05 | C60: 03:59:00 | D60: 0.12682
A61: 57 | B61: 2018-06-05 | C61: 04:00:00 | D61: 0.12865
A62: 58 | B62: 2018-06-05 | C62: 04:01:00 | D62: 0.129
A63: 59 | B63: 2018-06-05 | C63: 04:02:00 | D63: 0.12927
A64: 60 | B64: 2018-06-05 | C64: 04:03:00 | D64: 0.12955
A65: 61 | B65: 2018-06-05 | C65: 04:04:00 | D65: 0.13014
A66: 62 | B66: 2018-06-05 | C66: 04:05:00 | D66: 0.12989
A67: 63 | B67: 2018-06-05 | C67: 04:06:00 | D67: 0.12986
A68: 64 | B68: 2018-06-05 | C68: 04:07:00 | D68: 0.13047
A69: 65 | B69: 2018-06-05 | C69: 04:08:00 | D69: 0.12973
A70: 66 | B70: 2018-06-05 | C70: 04:09:00 | D70: 0.1298
A71: 67 | B71: 2018-06-05 | C71: 04:10:00 | D71: 0.12898
A72: 68 | B72: 2018-06-05 | C72: 04:11:00 | D72: 0.12905
A73: 69 | B73: 2018-06-05 | C73: 04:12:00 | D73: 0.12911
A74: 70 | B74: 2018-06-05 | C74: 04:13:00 | D74: 0.12908
A75: 71 | B75: 2018-06-05 | C75: 04:14:00 | D75: 0.12906
A76: 72 | B76: 2018-06-05 | C76: 04:15:00 | D76: 0.12949
A77: 73 | B77: 2018-06-05 | C77: 04:16:00 | D77: 0.12915
A78: 74 | B78: 2018-06-05 | C78: 04:17:00 | D78: 0.12898
A79: 75 | B79: 2018-06-05 | C79: 04:18:00 | D79: 0.12855
A80: 76 | B80: 2018-06-05 | C80: 04:19:00 | D80: 0.12853
A81: 77 | B81: 2018-06-05 | C81: 04:20:00 | D81: 0.1285
A82: 78 | B82: 2018-06-05 | C82: 04:21:00 | D82: 0.12866
A83: 79 | B83: 2018-06-05 | C83: 04:22:00 | D83: 0.12942
A84: 80 | B84: 2018-06-05 | C84: 04:23:00 | D84: 0.12854
A85: 81 | B85: 2018-06-05 | C85: 04:24:00 | D85: 0.12861
A86: 82 | B86: 2018-06-05 | C86: 04:25:00 | D86: 0.12866
A87: 83 | B87: 2018-06-05 | C87: 04:26:00 | D87: 0.12895
A88: 84 | B88: 2018-06-05 | C88: 04:27:00 | D88: 0.12842
A89: 85 | B89: 2018-06-05 | C89: 04:28:00 | D89: 0.12841
A90: 86 | B90: 2018-06-05 | C90: 04:29:00 | D90: 0.12935
A91: 87 | B91: 2018-06-05 | C91: 04:30:00 | D91: 0.12842
A92: 88 | B92: 2018-06-05 | C92: 04:31:00 | D92: 0.12858
A93: 89 | B93: 2018-06-05 | C93: 04:32:00 | D93: 0.12829
A94: 90 | B94: 2018-06-05 | C94: 04:33:00 | D94: 0.12787
A95: 91 | B95: 2018-06-05 | C95: 04:34:00 | D95: 0.12792
A96: 92 | B96: 2018-06-05 | C96: 04:35:00 | D96: 0.12796
A97: 93 | B97: 2018-06-05 | C97: 04:36:00 | D97: 0.12676
A98: 94 | B98: 2018-06-05 | C98: 04:37:00 | D98: 0.12737
A99: 95 | B99: 2018-06-05 | C99: 04:38:00 | D99: 0.12671
A100: 96 | B100: 2018-06-05 | C100: 04:39:00 | D100: 0.12698
A101: 97 | B101: 2018-06-05 | C101: 04:40:00 | D101: 0.12685
A102: 98 | B102: 2018-06-05 | C102: 04:41:00 | D102: 0.12711
A103: 99 | B103: 2018-06-05 | C103: 04:42:00 | D103: 0.12706
A104: 100 | B104: 2018-06-05 | C104: 04:43:00 | D104: 0.12728
A105: 101 | B105: 2018-06-05 | C105: 04:44:00 | D105: 0.12724
A106: 102 | B106: 2018-06-05 | C106: 04:45:00 | D106: 0.12725
A107: 103 | B107: 2018-06-05 | C107: 04:46:00 | D107: 0.1274
A108: 104 | B108: 2018-06-05 | C108: 04:47:00 | D108: 0.12747
A109: 105 | B109: 2018-06-05 | C109: 04:48:00 | D109: 0.12753
A110: 106 | B110: 2018-06-05 | C110: 04:49:00 | D110: 0.12737
A111: 107 | B111: 2018-06-05 | C111: 04:50:00 | D111: 0.12736
A112: 108 | B112: 2018-06-05 | C112: 04:51:00 | D112: 0.12719
A113: 109 | B113: 2018-06-05 | C113: 04:52:00 | D113: 0.12724
A114: 110 | B114: 2018-06-05 | C114: 04:53:00 | D114: 0.12731
A115: 111 | B115: 2018-06-05 | C115: 04:54:00 | D115: 0.12733
A116: 112 | B116: 2018-06-05 | C116: 04:55:00 | D116: 0.1279
A117: 113 | B117: 2018-06-05 | C117: 04:56:00 | D117: 0.12757
A118: 114 | B118: 2018-06-05 | C118: 04:57:00 | D118: 0.12711
A119: 115 | B119: 2018-06-05 | C119: 04:58:00 | D119: 0.12705
A120: 116 | B120: 2018-06-05 | C120: 04:59:00 | D120: 0.1253
A121: 117 | B121: 2018-06-05 | C121: 05:00:00 | D121: 0.12685
A122: 118 | B122: 2018-06-05 | C122: 05:01:00 | D122: 0.12685
A123: 119 | B123: 2018-06-05 | C123: 05:02:00 | D123: 0.12713
A124: 120 | B124: 2018-06-05 | C124: 05:03:00 | D124: 0.12758
A125: 121 | B125: 2018-06-05 | C125: 05:04:00 | D125: 0.12696
A126: 122 | B126: 2018-06-05 | C126: 05:05:00 | D126: 0.12777
A127: 123 | B127: 2018-06-05 | C127: 05:06:00 | D127: 0.12709
A128: 124 | B128: 2018-06-05 | C128: 05:07:00 | D128: 0.12748
A129: 125 | B129: 2018-06-05 | C129: 05:08:00 | D129: 0.12421
A130: 126 | B130: 2018-06-05 | C130: 05:09:00 | D130: 0.12416
A131: 127 | B131: 2018-06-05 | C131: 05:10:00 | D131: 0.12424
A132: 128 | B132: 2018-06-05 | C132: 05:11:00 | D132: 0.12408
A133: 129 | B133: 2018-06-05 | C133: 05:12:00 | D133: 0.12642
A134: 130 | B134: 2018-06-05 | C134: 05:13:00 | D134: 0.12644
A135: 131 | B135: 2018-06-05 | C135: 05:14:00 | D135: 0.12668
A136: 132 | B136: 2018-06-05 | C136: 05:15:00 | D136: 0.12666
A137: 133 | B137: 2018-06-05 | C137: 05:16:00 | D137: 0.12677
A138: 134 | B138: 2018-06-05 | C138: 05:17:00 | D138: 0.1275
A139: 135 | B139: 2018-06-05 | C139: 05:18:00 | D139: 0.12752
A140: 136 | B140: 2018-06-05 | C140: 05:19:00 | D140: 0.1267
A141: 137 | B141: 2018-06-05 | C141: 05:20:00 | D141: 0.12674
A142: 138 | B142: 2018-06-05 | C142: 05:21:00 | D142: 0.12664
A143: 139 | B143: 2018-06-05 | C143: 05:22:00 | D143: 0.12641
A144: 140 | B144: 2018-06-05 | C144: 05:23:00 | D144: 0.12653
A145: 141 | B145: 2018-06-05 | C145: 05:24:00 | D145: 0.1266
A146: 142 | B146: 2018-06-05 | C146: 05:25:00 | D146: 0.1269
A147: 143 | B147: 2018-06-05 | C147: 05:26:00 | D147: 0.12627
A148: 144 | B148: 2018-06-05 | C148: 05:27:00 | D148: 0.12633
A149: 145 | B149: 2018-06-05 | C149: 05:28:00 | D149: 0.12693
A150: 146 | B150: 2018-06-05 | C150: 05:29:00 | D150: 0.12634
A151: 147 | B151: 2018-06-05 | C151: 05:30:00 | D151: 0.12645
A152: 148 | B152: 2018-06-05 | C152: 05:31:00 | D152: 0.12219
A153: 149 | B153: 2018-06-05 | C153: 05:32:00 | D153: 0.12667
A154: 150 | B154: 2018-06-05 | C154: 05:33:00 | D154: 0.12669
A155: 151 | B155: 2018-06-05 | C155: 05:34:00 | D155: 0.1267
A156: 152 | B156: 2018-06-05 | C156: 05:35:00 | D156: 0.1265
A157: 153 | B157: 2018-06-05 | C157: 05:36:00 | D157: 0.12683
A158: 154 | B158: 2018-06-05 | C158: 05:37:00 | D158: 0.12687
A159: 155 | B159: 2018-06-05 | C159: 05:38:00 | D159: 0.12657
A160: 156 | B160: 2018-06-05 | C160: 05:39:00 | D160: 0.12615
A161: 157 | B161: 2018-06-05 | C161: 05:40:00 | D161: 0.12644
A162: 158 | B162: 2018-06-05 | C162: 05:41:00 | D162: 0.1266
A163: 159 | B163: 2018-06-05 | C163: 05:42:00 | D163: 0.12692
A164: 160 | B164: 2018-06-05 | C164: 05:43:00 | D164: 0.12688
A165: 161 | B165: 2018-06-05 | C165: 05:44:00 | D165: 0.12691
A166: 162 | B166: 2018-06-05 | C166: 05:45:00 | D166: 0.1269
A167: 163 | B167: 2018-06-05 | C167: 05:46:00 | D167: 0.12668
A168: 164 | B168: 2018-06-05 | C168: 05:47:00 | D168: 0.12658
A169: 165 | B169: 2018-06-05 | C169: 05:48:00 | D169: 0.12704
A170: 166 | B170: 2018-06-05 | C170: 05:49:00 | D170: 0.12642
A171: 167 | B171: 2018-06-05 | C171: 05:50:00 | D171: 0.12709
A172: 168 | B172: 2018-06-05 | C172: 05:51:00 | D172: 0.1268
A173: 169 | B173: 2018-06-05 | C173: 05:52:00 | D173: 0.12691
A174: 170 | B174: 2018-06-05 | C174: 05:53:00 | D174: 0.12732
A175: 171 | B175: 2018-06-05 | C175: 05:54:00 | D175: 0.12737
A176: 172 | B176: 2018-06-05 | C176: 05:55:00 | D176: 0.12724
A177: 173 | B177: 2018-06-05 | C177: 05:56:00 | D177: 0.12722
A178: 174 | B178: 2018-06-05 | C178: 05:57:00 | D178: 0.1272
A179: 175 | B179: 2018-06-05 | C179: 05:58:00 | D179: 0.12749
A180: 176 | B180: 2018-06-05 | C180: 05:59:00 | D180: 0.1277
A181: 177 | B181: 2018-06-05 | C181: 06:00:00 | D181: 0.12783
A182: 178 | B182: 2018-06-05 | C182: 06:01:00 | D182: 0.12784
A183: 179 | B183: 2018-06-05 | C183: 06:02:00 | D183: 0.12764
A184: 180 | B184: 2018-06-05 | C184: 06:03:00 | D184: 0.12692
A185: 181 | B185: 2018-06-05 | C185: 06:04:00 | D185: 0.12686
A186: 182 | B186: 2018-06-05 | C186: 06:05:00 | D186: 0.12676
A187: 183 | B187: 2018-06-05 | C187: 06:06:00 | D187: 0.12766
A188: 184 | B188: 2018-06-05 | C188: 06:07:00 | D188: 0.12679
A189: 185 | B189: 2018-06-05 | C189: 06:08:00 | D189: 0.12665
A190: 186 | B190: 2018-06-05 | C190: 06:09:00 | D190: 0.12647
A191: 187 | B191: 2018-06-05 | C191: 06:10:00 | D191: 0.12899
A192: 188 | B192: 2018-06-05 | C192: 06:11:00 | D192: 0.12717
A193: 189 | B193: 2018-06-05 | C193: 06:12:00 | D193: 0.12644
A194: 190 | B194: 2018-06-05 | C194: 06:13:00 | D194: 0.12756
A195: 191 | B195: 2018-06-05 | C195: 06:14:00 | D195: 0.12661
A196: 192 | B196: 2018-06-05 | C196: 06:15:00 | D196: 0.12735
A197: 193 | B197: 2018-06-05 | C197: 06:16:00 | D197: 0.12639
A198: 194 | B198: 2018-06-05 | C198: 06:17:00 | D198: 0.12652
A199: 195 | B199: 2018-06-05 | C199: 06:18:00 | D199: 0.12656
A200: 196 | B200: 2018-06-05 | C200: 06:19:00 | D200: 0.1277
A201: 197 | B201: 2018-06-05 | C201: 06:20:00 | D201: 0.12677
... 479 more rows

Sheet delta_gamma
A1: Call | E1: put
A2: Axe Y | B2: Axe X | C2: Axe X | E2: Axe Y | F2: Axe X | G2: Axe X
A3: Moneyness | B3: Echéance | C3: 36M | E3: Moneyness | F3: Echéance | G3: 36M
A4: 60 | B4: Volatilité | C4: 10.000% | E4: 55 | F4: Volatilité | G4: 10.000%
B5: Prix (total) | C5: 0 | F5: Prix (total) | G5: 0
B6: Delta | C6: 99.88 | F6: Delta | G6: -0.02
B7: Gamma | C7: 0.0228 | F7: Gamma | G7: 0.0044
A8: 80 | B8: Volatilité | C8: 10.000% | E8: 60 | F8: Volatilité | G8: 10.000%
B9: Prix (total) | C9: 0 | F9: Prix (total) | G9: 0
B10: Delta | C10: 91.59 | F10: Delta | G10: -0.12
B11: Gamma | C11: 0.8907 | F11: Gamma | G11: 0.0228
A12: 105 | B12: Volatilité | C12: 10.000% | E12: 65 | F12: Volatilité | G12: 10.000%
B13: Prix (total) | C13: 0 | F13: Prix (total) | G13: 0
B14: Delta | C14: 42.43 | F14: Delta | G14: -0.5
B15: Gamma | C15: 2.2601 | F15: Gamma | G15: 0.0834
A16: 110 | B16: Volatilité | C16: 10.000% | E16: 70 | F16: Volatilité | G16: 10.000%
B17: Prix (total) | C17: 0 | F17: Prix (total) | G17: 0
B18: Delta | C18: 32.3 | F18: Delta | G18: -1.58
B19: Gamma | C19: 2.0712 | F19: Gamma | G19: 0.229
A20: 115 | B20: Volatilité | C20: 10.000% | E20: 75 | F20: Volatilité | G20: 10.000%
B21: Prix (total) | C21: 0 | F21: Prix (total) | G21: 0
B22: Delta | C22: 23.71 | F22: Delta | G22: -4
B23: Gamma | C23: 1.7815 | F23: Gamma | G23: 0.4975
A24: 120 | B24: Volatilité | C24: 10.000% | E24: 80 | F24: Volatilité | G24: 10.000%
B25: Prix (total) | C25: 0 | F25: Prix (total) | G25: 0
B26: Delta | C26: 16.82 | F26: Delta | G26: -8.41
B27: Gamma | C27: 1.45 | F27: Gamma | G27: 0.8907
A28: 125 | B28: Volatilité | C28: 10.000% | E28: 85 | F28: Volatilité | G28: 10.000%
B29: Prix (total) | C29: 0 | F29: Prix (total) | G29: 0
B30: Delta | C30: 11.57 | F30: Delta | G30: -15.19
B31: Gamma | C31: 1.1246 | F31: Gamma | G31: 1.3567
A32: 130 | B32: Volatilité | C32: 10.000% | E32: 90 | F32: Volatilité | G32: 10.000%
B33: Prix (total) | C33: 0 | F33: Prix (total) | G33: 0
B34: Delta | C34: 7.73 | F34: Delta | G34: -24.25
B35: Gamma | C35: 0.8361 | F35: Gamma | G35: 1.8035
A36: 135 | B36: Volatilité | C36: 10.000% | E36: 95 | F36: Volatilité | G36: 10.000%
B37: Prix (total) | C37: 0 | F37: Prix (total) | G37: 0
B38: Delta | C38: 5.04 | F38: Delta | G38: -34.96
B39: Gamma | C39: 0.5989 | F39: Gamma | G39: 2.136
A40: 140 | B40: Volatilité | C40: 10.000% | E40: 100 | F40: Volatilité | G40: 10.000%
B41: Prix (total) | C41: 0 | F41: Prix (total) | G41: 0
B42: Delta | C42: 3.21 | F42: Delta | G42: -46.39
B43: Gamma | C43: 0.4152 | F43: Gamma | G43: 2.2923
A44: 145 | B44: Volatilité | C44: 10.000% | E44: 120 | F44: Volatilité | G44: 10.000%
B45: Prix (total) | C45: 0 | F45: Prix (total) | G45: 0
B46: Delta | C46: 2 | F46: Delta | G46: -83.18
B47: Gamma | C47: 0.2797 | F47: Gamma | G47: 1.45
E48: 140 | F48: Volatilité | G48: 10.000%
F49: Prix (total) | G49: 0
F50: Delta | G50: -96.79
F51: Gamma | G51: 0.4152
